{"text_format":"3","workbook":"xlsx","n_sheets":12,"sheets":["1 月","2 月","3 月","4 月","5 月","6 月","7 月","8 月","9 月","10 月","11 月","12 月"],"not_rendered":{"defined_names":40},"read":"whole","date_system":"1900"}

{"sheet":"1 月","index":0,"n_rows":20,"n_cols":9,"rows_kept":20,"merged":[[16,2,17,2],[16,3,17,3],[17,4,19,8]]}
[null,"1 月","日",{"$f":"UPPER(TEXT(D3,\"aaa\"))","v":"月"},"火","水","木","金","土"]
[null,{"$f":"YEAR(TODAY())","v":2018}]
[null,null,{"$f":"DaysAndWeeks+DATE(CalendarYear,1,1)-WEEKDAY(DATE(CalendarYear,1,1),(WeekStart=\"月\")+1)+1","v":"2017-12-31"},"2018-01-01","2018-01-02","2018-01-03","2018-01-04","2018-01-05","2018-01-06"]
[null,null,{"$f":"IF(DAY(CalendarDay)=1,CONCATENATE(\"週 \",WEEKNUM(CalendarDay),\"/日 \",CalendarDay-DATE(YEAR(CalendarDay),1,0)),CONCATENATE(\"日 \",CalendarDay-DATE(YEAR(CalendarDay),1,0)))","v":"日 365"},{"$f":"IF(DAY(CalendarDay)=1,CONCATENATE(\"週 \",WEEKNUM(CalendarDay),\"/日 \",CalendarDay-DATE(YEAR(CalendarDay),1,0)),CONCATENATE(\"日 \",CalendarDay-DATE(YEAR(CalendarDay),1,0)))","v":"週 1/日 1"},{"$f":"IF(DAY(CalendarDay)=1,CONCATENATE(\"週 \",WEEKNUM(CalendarDay),\"/日 \",CalendarDay-DATE(YEAR(CalendarDay),1,0)),CONCATENATE(\"日 \",CalendarDay-DATE(YEAR(CalendarDay),1,0)))","v":"日 2"},{"$f":"IF(DAY(CalendarDay)=1,CONCATENATE(\"週 \",WEEKNUM(CalendarDay),\"/日 \",CalendarDay-DATE(YEAR(CalendarDay),1,0)),CONCATENATE(\"日 \",CalendarDay-DATE(YEAR(CalendarDay),1,0)))","v":"日 3"},{"$f":"IF(DAY(CalendarDay)=1,CONCATENATE(\"週 \",WEEKNUM(CalendarDay),\"/日 \",CalendarDay-DATE(YEAR(CalendarDay),1,0)),CONCATENATE(\"日 \",CalendarDay-DATE(YEAR(CalendarDay),1,0)))","v":"日 4"},{"$f":"IF(DAY(CalendarDay)=1,CONCATENATE(\"週 \",WEEKNUM(CalendarDay),\"/日 \",CalendarDay-DATE(YEAR(CalendarDay),1,0)),CONCATENATE(\"日 \",CalendarDay-DATE(YEAR(CalendarDay),1,0)))","v":"日 5"},{"$f":"IF(DAY(CalendarDay)=1,CONCATENATE(\"週 \",WEEKNUM(CalendarDay),\"/日 \",CalendarDay-DATE(YEAR(CalendarDay),1,0)),CONCATENATE(\"日 \",CalendarDay-DATE(YEAR(CalendarDay),1,0)))","v":"日 6"}]
[]
[null,null,{"$f":"DaysAndWeeks+DATE(CalendarYear,1,1)-WEEKDAY(DATE(CalendarYear,1,1),(WeekStart=\"月\")+1)+8","v":"2018-01-07"},"2018-01-08","2018-01-09","2018-01-10","2018-01-11","2018-01-12","2018-01-13"]
[null,null,{"$f":"IF(WEEKDAY(CalendarDay)=WeekStartValue,CONCATENATE(\"週 \",WEEKNUM(CalendarDay),\"/日 \",CalendarDay-DATE(YEAR(CalendarDay),1,0)),CONCATENATE(\"日 \",CalendarDay-DATE(YEAR(CalendarDay),1,0)))","v":"週 2/日 7"},{"$f":"IF(WEEKDAY(CalendarDay)=WeekStartValue,CONCATENATE(\"週 \",WEEKNUM(CalendarDay),\"/日 \",CalendarDay-DATE(YEAR(CalendarDay),1,0)),CONCATENATE(\"日 \",CalendarDay-DATE(YEAR(CalendarDay),1,0)))","v":"日 8"},{"$f":"IF(WEEKDAY(CalendarDay)=WeekStartValue,CONCATENATE(\"週 \",WEEKNUM(CalendarDay),\"/日 \",CalendarDay-DATE(YEAR(CalendarDay),1,0)),CONCATENATE(\"日 \",CalendarDay-DATE(YEAR(CalendarDay),1,0)))","v":"日 9"},{"$f":"IF(WEEKDAY(CalendarDay)=WeekStartValue,CONCATENATE(\"週 \",WEEKNUM(CalendarDay),\"/日 \",CalendarDay-DATE(YEAR(CalendarDay),1,0)),CONCATENATE(\"日 \",CalendarDay-DATE(YEAR(CalendarDay),1,0)))","v":"日 10"},{"$f":"IF(WEEKDAY(CalendarDay)=WeekStartValue,CONCATENATE(\"週 \",WEEKNUM(CalendarDay),\"/日 \",CalendarDay-DATE(YEAR(CalendarDay),1,0)),CONCATENATE(\"日 \",CalendarDay-DATE(YEAR(CalendarDay),1,0)))","v":"日 11"},{"$f":"IF(WEEKDAY(CalendarDay)=WeekStartValue,CONCATENATE(\"週 \",WEEKNUM(CalendarDay),\"/日 \",CalendarDay-DATE(YEAR(CalendarDay),1,0)),CONCATENATE(\"日 \",CalendarDay-DATE(YEAR(CalendarDay),1,0)))","v":"日 12"},{"$f":"IF(WEEKDAY(CalendarDay)=WeekStartValue,CONCATENATE(\"週 \",WEEKNUM(CalendarDay),\"/日 \",CalendarDay-DATE(YEAR(CalendarDay),1,0)),CONCATENATE(\"日 \",CalendarDay-DATE(YEAR(CalendarDay),1,0)))","v":"日 13"}]
[]
[null,null,{"$f":"DaysAndWeeks+DATE(CalendarYear,1,1)-WEEKDAY(DATE(CalendarYear,1,1),(WeekStart=\"月\")+1)+15","v":"2018-01-14"},"2018-01-15","2018-01-16","2018-01-17","2018-01-18","2018-01-19","2018-01-20"]
[null,null,{"$f":"IF(WEEKDAY(CalendarDay)=WeekStartValue,CONCATENATE(\"週 \",WEEKNUM(CalendarDay),\"/日 \",CalendarDay-DATE(YEAR(CalendarDay),1,0)),CONCATENATE(\"日 \",CalendarDay-DATE(YEAR(CalendarDay),1,0)))","v":"週 3/日 14"},{"$f":"IF(WEEKDAY(CalendarDay)=WeekStartValue,CONCATENATE(\"週 \",WEEKNUM(CalendarDay),\"/日 \",CalendarDay-DATE(YEAR(CalendarDay),1,0)),CONCATENATE(\"日 \",CalendarDay-DATE(YEAR(CalendarDay),1,0)))","v":"日 15"},{"$f":"IF(WEEKDAY(CalendarDay)=WeekStartValue,CONCATENATE(\"週 \",WEEKNUM(CalendarDay),\"/日 \",CalendarDay-DATE(YEAR(CalendarDay),1,0)),CONCATENATE(\"日 \",CalendarDay-DATE(YEAR(CalendarDay),1,0)))","v":"日 16"},{"$f":"IF(WEEKDAY(CalendarDay)=WeekStartValue,CONCATENATE(\"週 \",WEEKNUM(CalendarDay),\"/日 \",CalendarDay-DATE(YEAR(CalendarDay),1,0)),CONCATENATE(\"日 \",CalendarDay-DATE(YEAR(CalendarDay),1,0)))","v":"日 17"},{"$f":"IF(WEEKDAY(CalendarDay)=WeekStartValue,CONCATENATE(\"週 \",WEEKNUM(CalendarDay),\"/日 \",CalendarDay-DATE(YEAR(CalendarDay),1,0)),CONCATENATE(\"日 \",CalendarDay-DATE(YEAR(CalendarDay),1,0)))","v":"日 18"},{"$f":"IF(WEEKDAY(CalendarDay)=WeekStartValue,CONCATENATE(\"週 \",WEEKNUM(CalendarDay),\"/日 \",CalendarDay-DATE(YEAR(CalendarDay),1,0)),CONCATENATE(\"日 \",CalendarDay-DATE(YEAR(CalendarDay),1,0)))","v":"日 19"},{"$f":"IF(WEEKDAY(CalendarDay)=WeekStartValue,CONCATENATE(\"週 \",WEEKNUM(CalendarDay),\"/日 \",CalendarDay-DATE(YEAR(CalendarDay),1,0)),CONCATENATE(\"日 \",CalendarDay-DATE(YEAR(CalendarDay),1,0)))","v":"日 20"}]
[]
[null,null,{"$f":"DaysAndWeeks+DATE(CalendarYear,1,1)-WEEKDAY(DATE(CalendarYear,1,1),(WeekStart=\"月\")+1)+22","v":"2018-01-21"},"2018-01-22","2018-01-23","2018-01-24","2018-01-25","2018-01-26","2018-01-27"]
[null,null,{"$f":"IF(WEEKDAY(CalendarDay)=WeekStartValue,CONCATENATE(\"週 \",WEEKNUM(CalendarDay),\"/日 \",CalendarDay-DATE(YEAR(CalendarDay),1,0)),CONCATENATE(\"日 \",CalendarDay-DATE(YEAR(CalendarDay),1,0)))","v":"週 4/日 21"},{"$f":"IF(WEEKDAY(CalendarDay)=WeekStartValue,CONCATENATE(\"週 \",WEEKNUM(CalendarDay),\"/日 \",CalendarDay-DATE(YEAR(CalendarDay),1,0)),CONCATENATE(\"日 \",CalendarDay-DATE(YEAR(CalendarDay),1,0)))","v":"日 22"},{"$f":"IF(WEEKDAY(CalendarDay)=WeekStartValue,CONCATENATE(\"週 \",WEEKNUM(CalendarDay),\"/日 \",CalendarDay-DATE(YEAR(CalendarDay),1,0)),CONCATENATE(\"日 \",CalendarDay-DATE(YEAR(CalendarDay),1,0)))","v":"日 23"},{"$f":"IF(WEEKDAY(CalendarDay)=WeekStartValue,CONCATENATE(\"週 \",WEEKNUM(CalendarDay),\"/日 \",CalendarDay-DATE(YEAR(CalendarDay),1,0)),CONCATENATE(\"日 \",CalendarDay-DATE(YEAR(CalendarDay),1,0)))","v":"日 24"},{"$f":"IF(WEEKDAY(CalendarDay)=WeekStartValue,CONCATENATE(\"週 \",WEEKNUM(CalendarDay),\"/日 \",CalendarDay-DATE(YEAR(CalendarDay),1,0)),CONCATENATE(\"日 \",CalendarDay-DATE(YEAR(CalendarDay),1,0)))","v":"日 25"},{"$f":"IF(WEEKDAY(CalendarDay)=WeekStartValue,CONCATENATE(\"週 \",WEEKNUM(CalendarDay),\"/日 \",CalendarDay-DATE(YEAR(CalendarDay),1,0)),CONCATENATE(\"日 \",CalendarDay-DATE(YEAR(CalendarDay),1,0)))","v":"日 26"},{"$f":"IF(WEEKDAY(CalendarDay)=WeekStartValue,CONCATENATE(\"週 \",WEEKNUM(CalendarDay),\"/日 \",CalendarDay-DATE(YEAR(CalendarDay),1,0)),CONCATENATE(\"日 \",CalendarDay-DATE(YEAR(CalendarDay),1,0)))","v":"日 27"}]
[]
[null,null,{"$f":"DaysAndWeeks+DATE(CalendarYear,1,1)-WEEKDAY(DATE(CalendarYear,1,1),(WeekStart=\"月\")+1)+29","v":"2018-01-28"},"2018-01-29","2018-01-30","2018-01-31","2018-02-01","2018-02-02","2018-02-03"]
[null,null,{"$f":"IF(WEEKDAY(CalendarDay)=WeekStartValue,CONCATENATE(\"週 \",WEEKNUM(CalendarDay),\"/日 \",CalendarDay-DATE(YEAR(CalendarDay),1,0)),CONCATENATE(\"日 \",CalendarDay-DATE(YEAR(CalendarDay),1,0)))","v":"週 5/日 28"},{"$f":"IF(WEEKDAY(CalendarDay)=WeekStartValue,CONCATENATE(\"週 \",WEEKNUM(CalendarDay),\"/日 \",CalendarDay-DATE(YEAR(CalendarDay),1,0)),CONCATENATE(\"日 \",CalendarDay-DATE(YEAR(CalendarDay),1,0)))","v":"日 29"},{"$f":"IF(WEEKDAY(CalendarDay)=WeekStartValue,CONCATENATE(\"週 \",WEEKNUM(CalendarDay),\"/日 \",CalendarDay-DATE(YEAR(CalendarDay),1,0)),CONCATENATE(\"日 \",CalendarDay-DATE(YEAR(CalendarDay),1,0)))","v":"日 30"},{"$f":"IF(WEEKDAY(CalendarDay)=WeekStartValue,CONCATENATE(\"週 \",WEEKNUM(CalendarDay),\"/日 \",CalendarDay-DATE(YEAR(CalendarDay),1,0)),CONCATENATE(\"日 \",CalendarDay-DATE(YEAR(CalendarDay),1,0)))","v":"日 31"},{"$f":"IF(WEEKDAY(CalendarDay)=WeekStartValue,CONCATENATE(\"週 \",WEEKNUM(CalendarDay),\"/日 \",CalendarDay-DATE(YEAR(CalendarDay),1,0)),CONCATENATE(\"日 \",CalendarDay-DATE(YEAR(CalendarDay),1,0)))","v":"日 32"},{"$f":"IF(WEEKDAY(CalendarDay)=WeekStartValue,CONCATENATE(\"週 \",WEEKNUM(CalendarDay),\"/日 \",CalendarDay-DATE(YEAR(CalendarDay),1,0)),CONCATENATE(\"日 \",CalendarDay-DATE(YEAR(CalendarDay),1,0)))","v":"日 33"},{"$f":"IF(WEEKDAY(CalendarDay)=WeekStartValue,CONCATENATE(\"週 \",WEEKNUM(CalendarDay),\"/日 \",CalendarDay-DATE(YEAR(CalendarDay),1,0)),CONCATENATE(\"日 \",CalendarDay-DATE(YEAR(CalendarDay),1,0)))","v":"日 34"}]
[{"$nulls":4},"メモ"]
[]
[null,null,{"$f":"DaysAndWeeks+DATE(CalendarYear,1,1)-WEEKDAY(DATE(CalendarYear,1,1),(WeekStart=\"月\")+1)+36","v":"2018-02-04"},"2018-02-05"]
[null,null,{"$f":"IF(WEEKDAY(CalendarDay)=WeekStartValue,CONCATENATE(\"週 \",WEEKNUM(CalendarDay),\"/日 \",CalendarDay-DATE(YEAR(CalendarDay),1,0)),CONCATENATE(\"日 \",CalendarDay-DATE(YEAR(CalendarDay),1,0)))","v":"週 6/日 35"},{"$f":"IF(WEEKDAY(CalendarDay)=WeekStartValue,CONCATENATE(\"週 \",WEEKNUM(CalendarDay),\"/日 \",CalendarDay-DATE(YEAR(CalendarDay),1,0)),CONCATENATE(\"日 \",CalendarDay-DATE(YEAR(CalendarDay),1,0)))","v":"日 36"}]

{"sheet":"2 月","index":1,"n_rows":20,"n_cols":9,"rows_kept":20,"merged":[[16,2,17,2],[17,4,19,8]]}
[null,"2 月",{"$f":"UPPER(TEXT(WeekStart,\"ddd\"))","v":"日"},{"$f":"UPPER(TEXT(D3,\"aaa\"))","v":"月"},"火","水","木","金","土"]
[null,{"$f":"CalendarYear","v":2018}]
[null,null,{"$f":"DaysAndWeeks+DATE(CalendarYear,2,1)-WEEKDAY(DATE(CalendarYear,2,1),(WeekStart=\"月\")+1)+1","v":"2018-01-28"},"2018-01-29","2018-01-30","2018-01-31","2018-02-01","2018-02-02","2018-02-03"]
[null,null,{"$f":"IF(DAY(CalendarDay)=1,CONCATENATE(\"週 \",WEEKNUM(CalendarDay),\"/日 \",CalendarDay-DATE(YEAR(CalendarDay),1,0)),CONCATENATE(\"日 \",CalendarDay-DATE(YEAR(CalendarDay),1,0)))","v":"日 28"},{"$f":"IF(DAY(CalendarDay)=1,CONCATENATE(\"週 \",WEEKNUM(CalendarDay),\"/日 \",CalendarDay-DATE(YEAR(CalendarDay),1,0)),CONCATENATE(\"日 \",CalendarDay-DATE(YEAR(CalendarDay),1,0)))","v":"日 29"},{"$f":"IF(DAY(CalendarDay)=1,CONCATENATE(\"週 \",WEEKNUM(CalendarDay),\"/日 \",CalendarDay-DATE(YEAR(CalendarDay),1,0)),CONCATENATE(\"日 \",CalendarDay-DATE(YEAR(CalendarDay),1,0)))","v":"日 30"},{"$f":"IF(DAY(CalendarDay)=1,CONCATENATE(\"週 \",WEEKNUM(CalendarDay),\"/日 \",CalendarDay-DATE(YEAR(CalendarDay),1,0)),CONCATENATE(\"日 \",CalendarDay-DATE(YEAR(CalendarDay),1,0)))","v":"日 31"},{"$f":"IF(DAY(CalendarDay)=1,CONCATENATE(\"週 \",WEEKNUM(CalendarDay),\"/日 \",CalendarDay-DATE(YEAR(CalendarDay),1,0)),CONCATENATE(\"日 \",CalendarDay-DATE(YEAR(CalendarDay),1,0)))","v":"週 5/日 32"},{"$f":"IF(DAY(CalendarDay)=1,CONCATENATE(\"週 \",WEEKNUM(CalendarDay),\"/日 \",CalendarDay-DATE(YEAR(CalendarDay),1,0)),CONCATENATE(\"日 \",CalendarDay-DATE(YEAR(CalendarDay),1,0)))","v":"日 33"},{"$f":"IF(DAY(CalendarDay)=1,CONCATENATE(\"週 \",WEEKNUM(CalendarDay),\"/日 \",CalendarDay-DATE(YEAR(CalendarDay),1,0)),CONCATENATE(\"日 \",CalendarDay-DATE(YEAR(CalendarDay),1,0)))","v":"日 34"}]
[]
[null,null,{"$f":"DaysAndWeeks+DATE(CalendarYear,2,1)-WEEKDAY(DATE(CalendarYear,2,1),(WeekStart=\"月\")+1)+8","v":"2018-02-04"},"2018-02-05","2018-02-06","2018-02-07","2018-02-08","2018-02-09","2018-02-10"]
[null,null,{"$f":"IF(WEEKDAY(CalendarDay)=WeekStartValue,CONCATENATE(\"週 \",WEEKNUM(CalendarDay),\"/日 \",CalendarDay-DATE(YEAR(CalendarDay),1,0)),CONCATENATE(\"日 \",CalendarDay-DATE(YEAR(CalendarDay),1,0)))","v":"週 6/日 35"},{"$f":"IF(WEEKDAY(CalendarDay)=WeekStartValue,CONCATENATE(\"週 \",WEEKNUM(CalendarDay),\"/日 \",CalendarDay-DATE(YEAR(CalendarDay),1,0)),CONCATENATE(\"日 \",CalendarDay-DATE(YEAR(CalendarDay),1,0)))","v":"日 36"},{"$f":"IF(WEEKDAY(CalendarDay)=WeekStartValue,CONCATENATE(\"週 \",WEEKNUM(CalendarDay),\"/日 \",CalendarDay-DATE(YEAR(CalendarDay),1,0)),CONCATENATE(\"日 \",CalendarDay-DATE(YEAR(CalendarDay),1,0)))","v":"日 37"},{"$f":"IF(WEEKDAY(CalendarDay)=WeekStartValue,CONCATENATE(\"週 \",WEEKNUM(CalendarDay),\"/日 \",CalendarDay-DATE(YEAR(CalendarDay),1,0)),CONCATENATE(\"日 \",CalendarDay-DATE(YEAR(CalendarDay),1,0)))","v":"日 38"},{"$f":"IF(WEEKDAY(CalendarDay)=WeekStartValue,CONCATENATE(\"週 \",WEEKNUM(CalendarDay),\"/日 \",CalendarDay-DATE(YEAR(CalendarDay),1,0)),CONCATENATE(\"日 \",CalendarDay-DATE(YEAR(CalendarDay),1,0)))","v":"日 39"},{"$f":"IF(WEEKDAY(CalendarDay)=WeekStartValue,CONCATENATE(\"週 \",WEEKNUM(CalendarDay),\"/日 \",CalendarDay-DATE(YEAR(CalendarDay),1,0)),CONCATENATE(\"日 \",CalendarDay-DATE(YEAR(CalendarDay),1,0)))","v":"日 40"},{"$f":"IF(WEEKDAY(CalendarDay)=WeekStartValue,CONCATENATE(\"週 \",WEEKNUM(CalendarDay),\"/日 \",CalendarDay-DATE(YEAR(CalendarDay),1,0)),CONCATENATE(\"日 \",CalendarDay-DATE(YEAR(CalendarDay),1,0)))","v":"日 41"}]
[]
[null,null,{"$f":"DaysAndWeeks+DATE(CalendarYear,2,1)-WEEKDAY(DATE(CalendarYear,2,1),(WeekStart=\"月\")+1)+15","v":"2018-02-11"},"2018-02-12","2018-02-13","2018-02-14","2018-02-15","2018-02-16","2018-02-17"]
[null,null,{"$f":"IF(WEEKDAY(CalendarDay)=WeekStartValue,CONCATENATE(\"週 \",WEEKNUM(CalendarDay),\"/日 \",CalendarDay-DATE(YEAR(CalendarDay),1,0)),CONCATENATE(\"日 \",CalendarDay-DATE(YEAR(CalendarDay),1,0)))","v":"週 7/日 42"},{"$f":"IF(WEEKDAY(CalendarDay)=WeekStartValue,CONCATENATE(\"週 \",WEEKNUM(CalendarDay),\"/日 \",CalendarDay-DATE(YEAR(CalendarDay),1,0)),CONCATENATE(\"日 \",CalendarDay-DATE(YEAR(CalendarDay),1,0)))","v":"日 43"},{"$f":"IF(WEEKDAY(CalendarDay)=WeekStartValue,CONCATENATE(\"週 \",WEEKNUM(CalendarDay),\"/日 \",CalendarDay-DATE(YEAR(CalendarDay),1,0)),CONCATENATE(\"日 \",CalendarDay-DATE(YEAR(CalendarDay),1,0)))","v":"日 44"},{"$f":"IF(WEEKDAY(CalendarDay)=WeekStartValue,CONCATENATE(\"週 \",WEEKNUM(CalendarDay),\"/日 \",CalendarDay-DATE(YEAR(CalendarDay),1,0)),CONCATENATE(\"日 \",CalendarDay-DATE(YEAR(CalendarDay),1,0)))","v":"日 45"},{"$f":"IF(WEEKDAY(CalendarDay)=WeekStartValue,CONCATENATE(\"週 \",WEEKNUM(CalendarDay),\"/日 \",CalendarDay-DATE(YEAR(CalendarDay),1,0)),CONCATENATE(\"日 \",CalendarDay-DATE(YEAR(CalendarDay),1,0)))","v":"日 46"},{"$f":"IF(WEEKDAY(CalendarDay)=WeekStartValue,CONCATENATE(\"週 \",WEEKNUM(CalendarDay),\"/日 \",CalendarDay-DATE(YEAR(CalendarDay),1,0)),CONCATENATE(\"日 \",CalendarDay-DATE(YEAR(CalendarDay),1,0)))","v":"日 47"},{"$f":"IF(WEEKDAY(CalendarDay)=WeekStartValue,CONCATENATE(\"週 \",WEEKNUM(CalendarDay),\"/日 \",CalendarDay-DATE(YEAR(CalendarDay),1,0)),CONCATENATE(\"日 \",CalendarDay-DATE(YEAR(CalendarDay),1,0)))","v":"日 48"}]
[]
[null,null,{"$f":"DaysAndWeeks+DATE(CalendarYear,2,1)-WEEKDAY(DATE(CalendarYear,2,1),(WeekStart=\"月\")+1)+22","v":"2018-02-18"},"2018-02-19","2018-02-20","2018-02-21","2018-02-22","2018-02-23","2018-02-24"]
[null,null,{"$f":"IF(WEEKDAY(CalendarDay)=WeekStartValue,CONCATENATE(\"週 \",WEEKNUM(CalendarDay),\"/日 \",CalendarDay-DATE(YEAR(CalendarDay),1,0)),CONCATENATE(\"日 \",CalendarDay-DATE(YEAR(CalendarDay),1,0)))","v":"週 8/日 49"},{"$f":"IF(WEEKDAY(CalendarDay)=WeekStartValue,CONCATENATE(\"週 \",WEEKNUM(CalendarDay),\"/日 \",CalendarDay-DATE(YEAR(CalendarDay),1,0)),CONCATENATE(\"日 \",CalendarDay-DATE(YEAR(CalendarDay),1,0)))","v":"日 50"},{"$f":"IF(WEEKDAY(CalendarDay)=WeekStartValue,CONCATENATE(\"週 \",WEEKNUM(CalendarDay),\"/日 \",CalendarDay-DATE(YEAR(CalendarDay),1,0)),CONCATENATE(\"日 \",CalendarDay-DATE(YEAR(CalendarDay),1,0)))","v":"日 51"},{"$f":"IF(WEEKDAY(CalendarDay)=WeekStartValue,CONCATENATE(\"週 \",WEEKNUM(CalendarDay),\"/日 \",CalendarDay-DATE(YEAR(CalendarDay),1,0)),CONCATENATE(\"日 \",CalendarDay-DATE(YEAR(CalendarDay),1,0)))","v":"日 52"},{"$f":"IF(WEEKDAY(CalendarDay)=WeekStartValue,CONCATENATE(\"週 \",WEEKNUM(CalendarDay),\"/日 \",CalendarDay-DATE(YEAR(CalendarDay),1,0)),CONCATENATE(\"日 \",CalendarDay-DATE(YEAR(CalendarDay),1,0)))","v":"日 53"},{"$f":"IF(WEEKDAY(CalendarDay)=WeekStartValue,CONCATENATE(\"週 \",WEEKNUM(CalendarDay),\"/日 \",CalendarDay-DATE(YEAR(CalendarDay),1,0)),CONCATENATE(\"日 \",CalendarDay-DATE(YEAR(CalendarDay),1,0)))","v":"日 54"},{"$f":"IF(WEEKDAY(CalendarDay)=WeekStartValue,CONCATENATE(\"週 \",WEEKNUM(CalendarDay),\"/日 \",CalendarDay-DATE(YEAR(CalendarDay),1,0)),CONCATENATE(\"日 \",CalendarDay-DATE(YEAR(CalendarDay),1,0)))","v":"日 55"}]
[]
[null,null,{"$f":"DaysAndWeeks+DATE(CalendarYear,2,1)-WEEKDAY(DATE(CalendarYear,2,1),(WeekStart=\"月\")+1)+29","v":"2018-02-25"},"2018-02-26","2018-02-27","2018-02-28","2018-03-01","2018-03-02","2018-03-03"]
[null,null,{"$f":"IF(WEEKDAY(CalendarDay)=WeekStartValue,CONCATENATE(\"週 \",WEEKNUM(CalendarDay),\"/日 \",CalendarDay-DATE(YEAR(CalendarDay),1,0)),CONCATENATE(\"日 \",CalendarDay-DATE(YEAR(CalendarDay),1,0)))","v":"週 9/日 56"},{"$f":"IF(WEEKDAY(CalendarDay)=WeekStartValue,CONCATENATE(\"週 \",WEEKNUM(CalendarDay),\"/日 \",CalendarDay-DATE(YEAR(CalendarDay),1,0)),CONCATENATE(\"日 \",CalendarDay-DATE(YEAR(CalendarDay),1,0)))","v":"日 57"},{"$f":"IF(WEEKDAY(CalendarDay)=WeekStartValue,CONCATENATE(\"週 \",WEEKNUM(CalendarDay),\"/日 \",CalendarDay-DATE(YEAR(CalendarDay),1,0)),CONCATENATE(\"日 \",CalendarDay-DATE(YEAR(CalendarDay),1,0)))","v":"日 58"},{"$f":"IF(WEEKDAY(CalendarDay)=WeekStartValue,CONCATENATE(\"週 \",WEEKNUM(CalendarDay),\"/日 \",CalendarDay-DATE(YEAR(CalendarDay),1,0)),CONCATENATE(\"日 \",CalendarDay-DATE(YEAR(CalendarDay),1,0)))","v":"日 59"},{"$f":"IF(WEEKDAY(CalendarDay)=WeekStartValue,CONCATENATE(\"週 \",WEEKNUM(CalendarDay),\"/日 \",CalendarDay-DATE(YEAR(CalendarDay),1,0)),CONCATENATE(\"日 \",CalendarDay-DATE(YEAR(CalendarDay),1,0)))","v":"日 60"},{"$f":"IF(WEEKDAY(CalendarDay)=WeekStartValue,CONCATENATE(\"週 \",WEEKNUM(CalendarDay),\"/日 \",CalendarDay-DATE(YEAR(CalendarDay),1,0)),CONCATENATE(\"日 \",CalendarDay-DATE(YEAR(CalendarDay),1,0)))","v":"日 61"},{"$f":"IF(WEEKDAY(CalendarDay)=WeekStartValue,CONCATENATE(\"週 \",WEEKNUM(CalendarDay),\"/日 \",CalendarDay-DATE(YEAR(CalendarDay),1,0)),CONCATENATE(\"日 \",CalendarDay-DATE(YEAR(CalendarDay),1,0)))","v":"日 62"}]
[{"$nulls":4},"メモ"]
[]
[null,null,{"$f":"DaysAndWeeks+DATE(CalendarYear,2,1)-WEEKDAY(DATE(CalendarYear,2,1),(WeekStart=\"月\")+1)+36","v":"2018-03-04"},"2018-03-05"]
[null,null,{"$f":"IF(WEEKDAY(CalendarDay)=WeekStartValue,CONCATENATE(\"週 \",WEEKNUM(CalendarDay),\"/日 \",CalendarDay-DATE(YEAR(CalendarDay),1,0)),CONCATENATE(\"日 \",CalendarDay-DATE(YEAR(CalendarDay),1,0)))","v":"週 10/日 63"},{"$f":"IF(WEEKDAY(CalendarDay)=WeekStartValue,CONCATENATE(\"週 \",WEEKNUM(CalendarDay),\"/日 \",CalendarDay-DATE(YEAR(CalendarDay),1,0)),CONCATENATE(\"日 \",CalendarDay-DATE(YEAR(CalendarDay),1,0)))","v":"日 64"}]

{"sheet":"3 月","index":2,"n_rows":20,"n_cols":9,"rows_kept":20,"merged":[[16,2,17,2],[17,4,19,8]]}
[null,"3 月",{"$f":"UPPER(TEXT(WeekStart,\"ddd\"))","v":"日"},{"$f":"UPPER(TEXT(D3,\"aaa\"))","v":"月"},"火","水","木","金","土"]
[null,{"$f":"CalendarYear","v":2018}]
[null,null,{"$f":"DaysAndWeeks+DATE(CalendarYear,3,1)-WEEKDAY(DATE(CalendarYear,3,1),(WeekStart=\"月\")+1)+1","v":"2018-02-25"},"2018-02-26","2018-02-27","2018-02-28","2018-03-01","2018-03-02","2018-03-03"]
[null,null,{"$f":"IF(DAY(CalendarDay)=1,CONCATENATE(\"週 \",WEEKNUM(CalendarDay),\"/日 \",CalendarDay-DATE(YEAR(CalendarDay),1,0)),CONCATENATE(\"日 \",CalendarDay-DATE(YEAR(CalendarDay),1,0)))","v":"日 56"},{"$f":"IF(DAY(CalendarDay)=1,CONCATENATE(\"週 \",WEEKNUM(CalendarDay),\"/日 \",CalendarDay-DATE(YEAR(CalendarDay),1,0)),CONCATENATE(\"日 \",CalendarDay-DATE(YEAR(CalendarDay),1,0)))","v":"日 57"},{"$f":"IF(DAY(CalendarDay)=1,CONCATENATE(\"週 \",WEEKNUM(CalendarDay),\"/日 \",CalendarDay-DATE(YEAR(CalendarDay),1,0)),CONCATENATE(\"日 \",CalendarDay-DATE(YEAR(CalendarDay),1,0)))","v":"日 58"},{"$f":"IF(DAY(CalendarDay)=1,CONCATENATE(\"週 \",WEEKNUM(CalendarDay),\"/日 \",CalendarDay-DATE(YEAR(CalendarDay),1,0)),CONCATENATE(\"日 \",CalendarDay-DATE(YEAR(CalendarDay),1,0)))","v":"日 59"},{"$f":"IF(DAY(CalendarDay)=1,CONCATENATE(\"週 \",WEEKNUM(CalendarDay),\"/日 \",CalendarDay-DATE(YEAR(CalendarDay),1,0)),CONCATENATE(\"日 \",CalendarDay-DATE(YEAR(CalendarDay),1,0)))","v":"週 9/日 60"},{"$f":"IF(DAY(CalendarDay)=1,CONCATENATE(\"週 \",WEEKNUM(CalendarDay),\"/日 \",CalendarDay-DATE(YEAR(CalendarDay),1,0)),CONCATENATE(\"日 \",CalendarDay-DATE(YEAR(CalendarDay),1,0)))","v":"日 61"},{"$f":"IF(DAY(CalendarDay)=1,CONCATENATE(\"週 \",WEEKNUM(CalendarDay),\"/日 \",CalendarDay-DATE(YEAR(CalendarDay),1,0)),CONCATENATE(\"日 \",CalendarDay-DATE(YEAR(CalendarDay),1,0)))","v":"日 62"}]
[]
[null,null,{"$f":"DaysAndWeeks+DATE(CalendarYear,3,1)-WEEKDAY(DATE(CalendarYear,3,1),(WeekStart=\"月\")+1)+8","v":"2018-03-04"},"2018-03-05","2018-03-06","2018-03-07","2018-03-08","2018-03-09","2018-03-10"]
[null,null,{"$f":"IF(WEEKDAY(CalendarDay)=WeekStartValue,CONCATENATE(\"週 \",WEEKNUM(CalendarDay),\"/日 \",CalendarDay-DATE(YEAR(CalendarDay),1,0)),CONCATENATE(\"日 \",CalendarDay-DATE(YEAR(CalendarDay),1,0)))","v":"週 10/日 63"},{"$f":"IF(WEEKDAY(CalendarDay)=WeekStartValue,CONCATENATE(\"週 \",WEEKNUM(CalendarDay),\"/日 \",CalendarDay-DATE(YEAR(CalendarDay),1,0)),CONCATENATE(\"日 \",CalendarDay-DATE(YEAR(CalendarDay),1,0)))","v":"日 64"},{"$f":"IF(WEEKDAY(CalendarDay)=WeekStartValue,CONCATENATE(\"週 \",WEEKNUM(CalendarDay),\"/日 \",CalendarDay-DATE(YEAR(CalendarDay),1,0)),CONCATENATE(\"日 \",CalendarDay-DATE(YEAR(CalendarDay),1,0)))","v":"日 65"},{"$f":"IF(WEEKDAY(CalendarDay)=WeekStartValue,CONCATENATE(\"週 \",WEEKNUM(CalendarDay),\"/日 \",CalendarDay-DATE(YEAR(CalendarDay),1,0)),CONCATENATE(\"日 \",CalendarDay-DATE(YEAR(CalendarDay),1,0)))","v":"日 66"},{"$f":"IF(WEEKDAY(CalendarDay)=WeekStartValue,CONCATENATE(\"週 \",WEEKNUM(CalendarDay),\"/日 \",CalendarDay-DATE(YEAR(CalendarDay),1,0)),CONCATENATE(\"日 \",CalendarDay-DATE(YEAR(CalendarDay),1,0)))","v":"日 67"},{"$f":"IF(WEEKDAY(CalendarDay)=WeekStartValue,CONCATENATE(\"週 \",WEEKNUM(CalendarDay),\"/日 \",CalendarDay-DATE(YEAR(CalendarDay),1,0)),CONCATENATE(\"日 \",CalendarDay-DATE(YEAR(CalendarDay),1,0)))","v":"日 68"},{"$f":"IF(WEEKDAY(CalendarDay)=WeekStartValue,CONCATENATE(\"週 \",WEEKNUM(CalendarDay),\"/日 \",CalendarDay-DATE(YEAR(CalendarDay),1,0)),CONCATENATE(\"日 \",CalendarDay-DATE(YEAR(CalendarDay),1,0)))","v":"日 69"}]
[]
[null,null,{"$f":"DaysAndWeeks+DATE(CalendarYear,3,1)-WEEKDAY(DATE(CalendarYear,3,1),(WeekStart=\"月\")+1)+15","v":"2018-03-11"},"2018-03-12","2018-03-13","2018-03-14","2018-03-15","2018-03-16","2018-03-17"]
[null,null,{"$f":"IF(WEEKDAY(CalendarDay)=WeekStartValue,CONCATENATE(\"週 \",WEEKNUM(CalendarDay),\"/日 \",CalendarDay-DATE(YEAR(CalendarDay),1,0)),CONCATENATE(\"日 \",CalendarDay-DATE(YEAR(CalendarDay),1,0)))","v":"週 11/日 70"},{"$f":"IF(WEEKDAY(CalendarDay)=WeekStartValue,CONCATENATE(\"週 \",WEEKNUM(CalendarDay),\"/日 \",CalendarDay-DATE(YEAR(CalendarDay),1,0)),CONCATENATE(\"日 \",CalendarDay-DATE(YEAR(CalendarDay),1,0)))","v":"日 71"},{"$f":"IF(WEEKDAY(CalendarDay)=WeekStartValue,CONCATENATE(\"週 \",WEEKNUM(CalendarDay),\"/日 \",CalendarDay-DATE(YEAR(CalendarDay),1,0)),CONCATENATE(\"日 \",CalendarDay-DATE(YEAR(CalendarDay),1,0)))","v":"日 72"},{"$f":"IF(WEEKDAY(CalendarDay)=WeekStartValue,CONCATENATE(\"週 \",WEEKNUM(CalendarDay),\"/日 \",CalendarDay-DATE(YEAR(CalendarDay),1,0)),CONCATENATE(\"日 \",CalendarDay-DATE(YEAR(CalendarDay),1,0)))","v":"日 73"},{"$f":"IF(WEEKDAY(CalendarDay)=WeekStartValue,CONCATENATE(\"週 \",WEEKNUM(CalendarDay),\"/日 \",CalendarDay-DATE(YEAR(CalendarDay),1,0)),CONCATENATE(\"日 \",CalendarDay-DATE(YEAR(CalendarDay),1,0)))","v":"日 74"},{"$f":"IF(WEEKDAY(CalendarDay)=WeekStartValue,CONCATENATE(\"週 \",WEEKNUM(CalendarDay),\"/日 \",CalendarDay-DATE(YEAR(CalendarDay),1,0)),CONCATENATE(\"日 \",CalendarDay-DATE(YEAR(CalendarDay),1,0)))","v":"日 75"},{"$f":"IF(WEEKDAY(CalendarDay)=WeekStartValue,CONCATENATE(\"週 \",WEEKNUM(CalendarDay),\"/日 \",CalendarDay-DATE(YEAR(CalendarDay),1,0)),CONCATENATE(\"日 \",CalendarDay-DATE(YEAR(CalendarDay),1,0)))","v":"日 76"}]
[]
[null,null,{"$f":"DaysAndWeeks+DATE(CalendarYear,3,1)-WEEKDAY(DATE(CalendarYear,3,1),(WeekStart=\"月\")+1)+22","v":"2018-03-18"},"2018-03-19","2018-03-20","2018-03-21","2018-03-22","2018-03-23","2018-03-24"]
[null,null,{"$f":"IF(WEEKDAY(CalendarDay)=WeekStartValue,CONCATENATE(\"週 \",WEEKNUM(CalendarDay),\"/日 \",CalendarDay-DATE(YEAR(CalendarDay),1,0)),CONCATENATE(\"日 \",CalendarDay-DATE(YEAR(CalendarDay),1,0)))","v":"週 12/日 77"},{"$f":"IF(WEEKDAY(CalendarDay)=WeekStartValue,CONCATENATE(\"週 \",WEEKNUM(CalendarDay),\"/日 \",CalendarDay-DATE(YEAR(CalendarDay),1,0)),CONCATENATE(\"日 \",CalendarDay-DATE(YEAR(CalendarDay),1,0)))","v":"日 78"},{"$f":"IF(WEEKDAY(CalendarDay)=WeekStartValue,CONCATENATE(\"週 \",WEEKNUM(CalendarDay),\"/日 \",CalendarDay-DATE(YEAR(CalendarDay),1,0)),CONCATENATE(\"日 \",CalendarDay-DATE(YEAR(CalendarDay),1,0)))","v":"日 79"},{"$f":"IF(WEEKDAY(CalendarDay)=WeekStartValue,CONCATENATE(\"週 \",WEEKNUM(CalendarDay),\"/日 \",CalendarDay-DATE(YEAR(CalendarDay),1,0)),CONCATENATE(\"日 \",CalendarDay-DATE(YEAR(CalendarDay),1,0)))","v":"日 80"},{"$f":"IF(WEEKDAY(CalendarDay)=WeekStartValue,CONCATENATE(\"週 \",WEEKNUM(CalendarDay),\"/日 \",CalendarDay-DATE(YEAR(CalendarDay),1,0)),CONCATENATE(\"日 \",CalendarDay-DATE(YEAR(CalendarDay),1,0)))","v":"日 81"},{"$f":"IF(WEEKDAY(CalendarDay)=WeekStartValue,CONCATENATE(\"週 \",WEEKNUM(CalendarDay),\"/日 \",CalendarDay-DATE(YEAR(CalendarDay),1,0)),CONCATENATE(\"日 \",CalendarDay-DATE(YEAR(CalendarDay),1,0)))","v":"日 82"},{"$f":"IF(WEEKDAY(CalendarDay)=WeekStartValue,CONCATENATE(\"週 \",WEEKNUM(CalendarDay),\"/日 \",CalendarDay-DATE(YEAR(CalendarDay),1,0)),CONCATENATE(\"日 \",CalendarDay-DATE(YEAR(CalendarDay),1,0)))","v":"日 83"}]
[]
[null,null,{"$f":"DaysAndWeeks+DATE(CalendarYear,3,1)-WEEKDAY(DATE(CalendarYear,3,1),(WeekStart=\"月\")+1)+29","v":"2018-03-25"},"2018-03-26","2018-03-27","2018-03-28","2018-03-29","2018-03-30","2018-03-31"]
[null,null,{"$f":"IF(WEEKDAY(CalendarDay)=WeekStartValue,CONCATENATE(\"週 \",WEEKNUM(CalendarDay),\"/日 \",CalendarDay-DATE(YEAR(CalendarDay),1,0)),CONCATENATE(\"日 \",CalendarDay-DATE(YEAR(CalendarDay),1,0)))","v":"週 13/日 84"},{"$f":"IF(WEEKDAY(CalendarDay)=WeekStartValue,CONCATENATE(\"週 \",WEEKNUM(CalendarDay),\"/日 \",CalendarDay-DATE(YEAR(CalendarDay),1,0)),CONCATENATE(\"日 \",CalendarDay-DATE(YEAR(CalendarDay),1,0)))","v":"日 85"},{"$f":"IF(WEEKDAY(CalendarDay)=WeekStartValue,CONCATENATE(\"週 \",WEEKNUM(CalendarDay),\"/日 \",CalendarDay-DATE(YEAR(CalendarDay),1,0)),CONCATENATE(\"日 \",CalendarDay-DATE(YEAR(CalendarDay),1,0)))","v":"日 86"},{"$f":"IF(WEEKDAY(CalendarDay)=WeekStartValue,CONCATENATE(\"週 \",WEEKNUM(CalendarDay),\"/日 \",CalendarDay-DATE(YEAR(CalendarDay),1,0)),CONCATENATE(\"日 \",CalendarDay-DATE(YEAR(CalendarDay),1,0)))","v":"日 87"},{"$f":"IF(WEEKDAY(CalendarDay)=WeekStartValue,CONCATENATE(\"週 \",WEEKNUM(CalendarDay),\"/日 \",CalendarDay-DATE(YEAR(CalendarDay),1,0)),CONCATENATE(\"日 \",CalendarDay-DATE(YEAR(CalendarDay),1,0)))","v":"日 88"},{"$f":"IF(WEEKDAY(CalendarDay)=WeekStartValue,CONCATENATE(\"週 \",WEEKNUM(CalendarDay),\"/日 \",CalendarDay-DATE(YEAR(CalendarDay),1,0)),CONCATENATE(\"日 \",CalendarDay-DATE(YEAR(CalendarDay),1,0)))","v":"日 89"},{"$f":"IF(WEEKDAY(CalendarDay)=WeekStartValue,CONCATENATE(\"週 \",WEEKNUM(CalendarDay),\"/日 \",CalendarDay-DATE(YEAR(CalendarDay),1,0)),CONCATENATE(\"日 \",CalendarDay-DATE(YEAR(CalendarDay),1,0)))","v":"日 90"}]
[{"$nulls":4},"メモ"]
[]
[null,null,{"$f":"DaysAndWeeks+DATE(CalendarYear,3,1)-WEEKDAY(DATE(CalendarYear,3,1),(WeekStart=\"月\")+1)+36","v":"2018-04-01"},"2018-04-02"]
[null,null,{"$f":"IF(WEEKDAY(CalendarDay)=WeekStartValue,CONCATENATE(\"週 \",WEEKNUM(CalendarDay),\"/日 \",CalendarDay-DATE(YEAR(CalendarDay),1,0)),CONCATENATE(\"日 \",CalendarDay-DATE(YEAR(CalendarDay),1,0)))","v":"週 14/日 91"},{"$f":"IF(WEEKDAY(CalendarDay)=WeekStartValue,CONCATENATE(\"週 \",WEEKNUM(CalendarDay),\"/日 \",CalendarDay-DATE(YEAR(CalendarDay),1,0)),CONCATENATE(\"日 \",CalendarDay-DATE(YEAR(CalendarDay),1,0)))","v":"日 92"}]

{"sheet":"4 月","index":3,"n_rows":20,"n_cols":9,"rows_kept":20,"merged":[[16,2,17,2],[17,4,19,8]]}
[null,"4 月",{"$f":"UPPER(TEXT(WeekStart,\"ddd\"))","v":"日"},{"$f":"UPPER(TEXT(D3,\"aaa\"))","v":"月"},"火","水","木","金","土"]
[null,{"$f":"CalendarYear","v":2018}]
[null,null,{"$f":"DaysAndWeeks+DATE(CalendarYear,4,1)-WEEKDAY(DATE(CalendarYear,4,1),(WeekStart=\"月\")+1)+1","v":"2018-04-01"},"2018-04-02","2018-04-03","2018-04-04","2018-04-05","2018-04-06","2018-04-07"]
[null,null,{"$f":"IF(DAY(CalendarDay)=1,CONCATENATE(\"週 \",WEEKNUM(CalendarDay),\"/日 \",CalendarDay-DATE(YEAR(CalendarDay),1,0)),CONCATENATE(\"日 \",CalendarDay-DATE(YEAR(CalendarDay),1,0)))","v":"週 14/日 91"},{"$f":"IF(DAY(CalendarDay)=1,CONCATENATE(\"週 \",WEEKNUM(CalendarDay),\"/日 \",CalendarDay-DATE(YEAR(CalendarDay),1,0)),CONCATENATE(\"日 \",CalendarDay-DATE(YEAR(CalendarDay),1,0)))","v":"日 92"},{"$f":"IF(DAY(CalendarDay)=1,CONCATENATE(\"週 \",WEEKNUM(CalendarDay),\"/日 \",CalendarDay-DATE(YEAR(CalendarDay),1,0)),CONCATENATE(\"日 \",CalendarDay-DATE(YEAR(CalendarDay),1,0)))","v":"日 93"},{"$f":"IF(DAY(CalendarDay)=1,CONCATENATE(\"週 \",WEEKNUM(CalendarDay),\"/日 \",CalendarDay-DATE(YEAR(CalendarDay),1,0)),CONCATENATE(\"日 \",CalendarDay-DATE(YEAR(CalendarDay),1,0)))","v":"日 94"},{"$f":"IF(DAY(CalendarDay)=1,CONCATENATE(\"週 \",WEEKNUM(CalendarDay),\"/日 \",CalendarDay-DATE(YEAR(CalendarDay),1,0)),CONCATENATE(\"日 \",CalendarDay-DATE(YEAR(CalendarDay),1,0)))","v":"日 95"},{"$f":"IF(DAY(CalendarDay)=1,CONCATENATE(\"週 \",WEEKNUM(CalendarDay),\"/日 \",CalendarDay-DATE(YEAR(CalendarDay),1,0)),CONCATENATE(\"日 \",CalendarDay-DATE(YEAR(CalendarDay),1,0)))","v":"日 96"},{"$f":"IF(DAY(CalendarDay)=1,CONCATENATE(\"週 \",WEEKNUM(CalendarDay),\"/日 \",CalendarDay-DATE(YEAR(CalendarDay),1,0)),CONCATENATE(\"日 \",CalendarDay-DATE(YEAR(CalendarDay),1,0)))","v":"日 97"}]
[]
[null,null,{"$f":"DaysAndWeeks+DATE(CalendarYear,4,1)-WEEKDAY(DATE(CalendarYear,4,1),(WeekStart=\"月\")+1)+8","v":"2018-04-08"},"2018-04-09","2018-04-10","2018-04-11","2018-04-12","2018-04-13","2018-04-14"]
[null,null,{"$f":"IF(WEEKDAY(CalendarDay)=WeekStartValue,CONCATENATE(\"週 \",WEEKNUM(CalendarDay),\"/日 \",CalendarDay-DATE(YEAR(CalendarDay),1,0)),CONCATENATE(\"日 \",CalendarDay-DATE(YEAR(CalendarDay),1,0)))","v":"週 15/日 98"},{"$f":"IF(WEEKDAY(CalendarDay)=WeekStartValue,CONCATENATE(\"週 \",WEEKNUM(CalendarDay),\"/日 \",CalendarDay-DATE(YEAR(CalendarDay),1,0)),CONCATENATE(\"日 \",CalendarDay-DATE(YEAR(CalendarDay),1,0)))","v":"日 99"},{"$f":"IF(WEEKDAY(CalendarDay)=WeekStartValue,CONCATENATE(\"週 \",WEEKNUM(CalendarDay),\"/日 \",CalendarDay-DATE(YEAR(CalendarDay),1,0)),CONCATENATE(\"日 \",CalendarDay-DATE(YEAR(CalendarDay),1,0)))","v":"日 100"},{"$f":"IF(WEEKDAY(CalendarDay)=WeekStartValue,CONCATENATE(\"週 \",WEEKNUM(CalendarDay),\"/日 \",CalendarDay-DATE(YEAR(CalendarDay),1,0)),CONCATENATE(\"日 \",CalendarDay-DATE(YEAR(CalendarDay),1,0)))","v":"日 101"},{"$f":"IF(WEEKDAY(CalendarDay)=WeekStartValue,CONCATENATE(\"週 \",WEEKNUM(CalendarDay),\"/日 \",CalendarDay-DATE(YEAR(CalendarDay),1,0)),CONCATENATE(\"日 \",CalendarDay-DATE(YEAR(CalendarDay),1,0)))","v":"日 102"},{"$f":"IF(WEEKDAY(CalendarDay)=WeekStartValue,CONCATENATE(\"週 \",WEEKNUM(CalendarDay),\"/日 \",CalendarDay-DATE(YEAR(CalendarDay),1,0)),CONCATENATE(\"日 \",CalendarDay-DATE(YEAR(CalendarDay),1,0)))","v":"日 103"},{"$f":"IF(WEEKDAY(CalendarDay)=WeekStartValue,CONCATENATE(\"週 \",WEEKNUM(CalendarDay),\"/日 \",CalendarDay-DATE(YEAR(CalendarDay),1,0)),CONCATENATE(\"日 \",CalendarDay-DATE(YEAR(CalendarDay),1,0)))","v":"日 104"}]
[]
[null,null,{"$f":"DaysAndWeeks+DATE(CalendarYear,4,1)-WEEKDAY(DATE(CalendarYear,4,1),(WeekStart=\"月\")+1)+15","v":"2018-04-15"},"2018-04-16","2018-04-17","2018-04-18","2018-04-19","2018-04-20","2018-04-21"]
[null,null,{"$f":"IF(WEEKDAY(CalendarDay)=WeekStartValue,CONCATENATE(\"週 \",WEEKNUM(CalendarDay),\"/日 \",CalendarDay-DATE(YEAR(CalendarDay),1,0)),CONCATENATE(\"日 \",CalendarDay-DATE(YEAR(CalendarDay),1,0)))","v":"週 16/日 105"},{"$f":"IF(WEEKDAY(CalendarDay)=WeekStartValue,CONCATENATE(\"週 \",WEEKNUM(CalendarDay),\"/日 \",CalendarDay-DATE(YEAR(CalendarDay),1,0)),CONCATENATE(\"日 \",CalendarDay-DATE(YEAR(CalendarDay),1,0)))","v":"日 106"},{"$f":"IF(WEEKDAY(CalendarDay)=WeekStartValue,CONCATENATE(\"週 \",WEEKNUM(CalendarDay),\"/日 \",CalendarDay-DATE(YEAR(CalendarDay),1,0)),CONCATENATE(\"日 \",CalendarDay-DATE(YEAR(CalendarDay),1,0)))","v":"日 107"},{"$f":"IF(WEEKDAY(CalendarDay)=WeekStartValue,CONCATENATE(\"週 \",WEEKNUM(CalendarDay),\"/日 \",CalendarDay-DATE(YEAR(CalendarDay),1,0)),CONCATENATE(\"日 \",CalendarDay-DATE(YEAR(CalendarDay),1,0)))","v":"日 108"},{"$f":"IF(WEEKDAY(CalendarDay)=WeekStartValue,CONCATENATE(\"週 \",WEEKNUM(CalendarDay),\"/日 \",CalendarDay-DATE(YEAR(CalendarDay),1,0)),CONCATENATE(\"日 \",CalendarDay-DATE(YEAR(CalendarDay),1,0)))","v":"日 109"},{"$f":"IF(WEEKDAY(CalendarDay)=WeekStartValue,CONCATENATE(\"週 \",WEEKNUM(CalendarDay),\"/日 \",CalendarDay-DATE(YEAR(CalendarDay),1,0)),CONCATENATE(\"日 \",CalendarDay-DATE(YEAR(CalendarDay),1,0)))","v":"日 110"},{"$f":"IF(WEEKDAY(CalendarDay)=WeekStartValue,CONCATENATE(\"週 \",WEEKNUM(CalendarDay),\"/日 \",CalendarDay-DATE(YEAR(CalendarDay),1,0)),CONCATENATE(\"日 \",CalendarDay-DATE(YEAR(CalendarDay),1,0)))","v":"日 111"}]
[]
[null,null,{"$f":"DaysAndWeeks+DATE(CalendarYear,4,1)-WEEKDAY(DATE(CalendarYear,4,1),(WeekStart=\"月\")+1)+22","v":"2018-04-22"},"2018-04-23","2018-04-24","2018-04-25","2018-04-26","2018-04-27","2018-04-28"]
[null,null,{"$f":"IF(WEEKDAY(CalendarDay)=WeekStartValue,CONCATENATE(\"週 \",WEEKNUM(CalendarDay),\"/日 \",CalendarDay-DATE(YEAR(CalendarDay),1,0)),CONCATENATE(\"日 \",CalendarDay-DATE(YEAR(CalendarDay),1,0)))","v":"週 17/日 112"},{"$f":"IF(WEEKDAY(CalendarDay)=WeekStartValue,CONCATENATE(\"週 \",WEEKNUM(CalendarDay),\"/日 \",CalendarDay-DATE(YEAR(CalendarDay),1,0)),CONCATENATE(\"日 \",CalendarDay-DATE(YEAR(CalendarDay),1,0)))","v":"日 113"},{"$f":"IF(WEEKDAY(CalendarDay)=WeekStartValue,CONCATENATE(\"週 \",WEEKNUM(CalendarDay),\"/日 \",CalendarDay-DATE(YEAR(CalendarDay),1,0)),CONCATENATE(\"日 \",CalendarDay-DATE(YEAR(CalendarDay),1,0)))","v":"日 114"},{"$f":"IF(WEEKDAY(CalendarDay)=WeekStartValue,CONCATENATE(\"週 \",WEEKNUM(CalendarDay),\"/日 \",CalendarDay-DATE(YEAR(CalendarDay),1,0)),CONCATENATE(\"日 \",CalendarDay-DATE(YEAR(CalendarDay),1,0)))","v":"日 115"},{"$f":"IF(WEEKDAY(CalendarDay)=WeekStartValue,CONCATENATE(\"週 \",WEEKNUM(CalendarDay),\"/日 \",CalendarDay-DATE(YEAR(CalendarDay),1,0)),CONCATENATE(\"日 \",CalendarDay-DATE(YEAR(CalendarDay),1,0)))","v":"日 116"},{"$f":"IF(WEEKDAY(CalendarDay)=WeekStartValue,CONCATENATE(\"週 \",WEEKNUM(CalendarDay),\"/日 \",CalendarDay-DATE(YEAR(CalendarDay),1,0)),CONCATENATE(\"日 \",CalendarDay-DATE(YEAR(CalendarDay),1,0)))","v":"日 117"},{"$f":"IF(WEEKDAY(CalendarDay)=WeekStartValue,CONCATENATE(\"週 \",WEEKNUM(CalendarDay),\"/日 \",CalendarDay-DATE(YEAR(CalendarDay),1,0)),CONCATENATE(\"日 \",CalendarDay-DATE(YEAR(CalendarDay),1,0)))","v":"日 118"}]
[]
[null,null,{"$f":"DaysAndWeeks+DATE(CalendarYear,4,1)-WEEKDAY(DATE(CalendarYear,4,1),(WeekStart=\"月\")+1)+29","v":"2018-04-29"},"2018-04-30","2018-05-01","2018-05-02","2018-05-03","2018-05-04","2018-05-05"]
[null,null,{"$f":"IF(WEEKDAY(CalendarDay)=WeekStartValue,CONCATENATE(\"週 \",WEEKNUM(CalendarDay),\"/日 \",CalendarDay-DATE(YEAR(CalendarDay),1,0)),CONCATENATE(\"日 \",CalendarDay-DATE(YEAR(CalendarDay),1,0)))","v":"週 18/日 119"},{"$f":"IF(WEEKDAY(CalendarDay)=WeekStartValue,CONCATENATE(\"週 \",WEEKNUM(CalendarDay),\"/日 \",CalendarDay-DATE(YEAR(CalendarDay),1,0)),CONCATENATE(\"日 \",CalendarDay-DATE(YEAR(CalendarDay),1,0)))","v":"日 120"},{"$f":"IF(WEEKDAY(CalendarDay)=WeekStartValue,CONCATENATE(\"週 \",WEEKNUM(CalendarDay),\"/日 \",CalendarDay-DATE(YEAR(CalendarDay),1,0)),CONCATENATE(\"日 \",CalendarDay-DATE(YEAR(CalendarDay),1,0)))","v":"日 121"},{"$f":"IF(WEEKDAY(CalendarDay)=WeekStartValue,CONCATENATE(\"週 \",WEEKNUM(CalendarDay),\"/日 \",CalendarDay-DATE(YEAR(CalendarDay),1,0)),CONCATENATE(\"日 \",CalendarDay-DATE(YEAR(CalendarDay),1,0)))","v":"日 122"},{"$f":"IF(WEEKDAY(CalendarDay)=WeekStartValue,CONCATENATE(\"週 \",WEEKNUM(CalendarDay),\"/日 \",CalendarDay-DATE(YEAR(CalendarDay),1,0)),CONCATENATE(\"日 \",CalendarDay-DATE(YEAR(CalendarDay),1,0)))","v":"日 123"},{"$f":"IF(WEEKDAY(CalendarDay)=WeekStartValue,CONCATENATE(\"週 \",WEEKNUM(CalendarDay),\"/日 \",CalendarDay-DATE(YEAR(CalendarDay),1,0)),CONCATENATE(\"日 \",CalendarDay-DATE(YEAR(CalendarDay),1,0)))","v":"日 124"},{"$f":"IF(WEEKDAY(CalendarDay)=WeekStartValue,CONCATENATE(\"週 \",WEEKNUM(CalendarDay),\"/日 \",CalendarDay-DATE(YEAR(CalendarDay),1,0)),CONCATENATE(\"日 \",CalendarDay-DATE(YEAR(CalendarDay),1,0)))","v":"日 125"}]
[{"$nulls":4},"メモ"]
[]
[null,null,{"$f":"DaysAndWeeks+DATE(CalendarYear,4,1)-WEEKDAY(DATE(CalendarYear,4,1),(WeekStart=\"月\")+1)+36","v":"2018-05-06"},"2018-05-07"]
[null,null,{"$f":"IF(WEEKDAY(CalendarDay)=WeekStartValue,CONCATENATE(\"週 \",WEEKNUM(CalendarDay),\"/日 \",CalendarDay-DATE(YEAR(CalendarDay),1,0)),CONCATENATE(\"日 \",CalendarDay-DATE(YEAR(CalendarDay),1,0)))","v":"週 19/日 126"},{"$f":"IF(WEEKDAY(CalendarDay)=WeekStartValue,CONCATENATE(\"週 \",WEEKNUM(CalendarDay),\"/日 \",CalendarDay-DATE(YEAR(CalendarDay),1,0)),CONCATENATE(\"日 \",CalendarDay-DATE(YEAR(CalendarDay),1,0)))","v":"日 127"}]

{"sheet":"5 月","index":4,"n_rows":20,"n_cols":9,"rows_kept":20,"merged":[[16,2,17,2],[17,4,19,8]]}
[null,"5 月",{"$f":"UPPER(TEXT(WeekStart,\"ddd\"))","v":"日"},{"$f":"UPPER(TEXT(D3,\"aaa\"))","v":"月"},"火","水","木","金","土"]
[null,{"$f":"CalendarYear","v":2018}]
[null,null,{"$f":"DaysAndWeeks+DATE(CalendarYear,5,1)-WEEKDAY(DATE(CalendarYear,5,1),(WeekStart=\"月\")+1)+1","v":"2018-04-29"},"2018-04-30","2018-05-01","2018-05-02","2018-05-03","2018-05-04","2018-05-05"]
[null,null,{"$f":"IF(DAY(CalendarDay)=1,CONCATENATE(\"週 \",WEEKNUM(CalendarDay),\"/日 \",CalendarDay-DATE(YEAR(CalendarDay),1,0)),CONCATENATE(\"日 \",CalendarDay-DATE(YEAR(CalendarDay),1,0)))","v":"日 119"},{"$f":"IF(DAY(CalendarDay)=1,CONCATENATE(\"週 \",WEEKNUM(CalendarDay),\"/日 \",CalendarDay-DATE(YEAR(CalendarDay),1,0)),CONCATENATE(\"日 \",CalendarDay-DATE(YEAR(CalendarDay),1,0)))","v":"日 120"},{"$f":"IF(DAY(CalendarDay)=1,CONCATENATE(\"週 \",WEEKNUM(CalendarDay),\"/日 \",CalendarDay-DATE(YEAR(CalendarDay),1,0)),CONCATENATE(\"日 \",CalendarDay-DATE(YEAR(CalendarDay),1,0)))","v":"週 18/日 121"},{"$f":"IF(DAY(CalendarDay)=1,CONCATENATE(\"週 \",WEEKNUM(CalendarDay),\"/日 \",CalendarDay-DATE(YEAR(CalendarDay),1,0)),CONCATENATE(\"日 \",CalendarDay-DATE(YEAR(CalendarDay),1,0)))","v":"日 122"},{"$f":"IF(DAY(CalendarDay)=1,CONCATENATE(\"週 \",WEEKNUM(CalendarDay),\"/日 \",CalendarDay-DATE(YEAR(CalendarDay),1,0)),CONCATENATE(\"日 \",CalendarDay-DATE(YEAR(CalendarDay),1,0)))","v":"日 123"},{"$f":"IF(DAY(CalendarDay)=1,CONCATENATE(\"週 \",WEEKNUM(CalendarDay),\"/日 \",CalendarDay-DATE(YEAR(CalendarDay),1,0)),CONCATENATE(\"日 \",CalendarDay-DATE(YEAR(CalendarDay),1,0)))","v":"日 124"},{"$f":"IF(DAY(CalendarDay)=1,CONCATENATE(\"週 \",WEEKNUM(CalendarDay),\"/日 \",CalendarDay-DATE(YEAR(CalendarDay),1,0)),CONCATENATE(\"日 \",CalendarDay-DATE(YEAR(CalendarDay),1,0)))","v":"日 125"}]
[]
[null,null,{"$f":"DaysAndWeeks+DATE(CalendarYear,5,1)-WEEKDAY(DATE(CalendarYear,5,1),(WeekStart=\"月\")+1)+8","v":"2018-05-06"},"2018-05-07","2018-05-08","2018-05-09","2018-05-10","2018-05-11","2018-05-12"]
[null,null,{"$f":"IF(WEEKDAY(CalendarDay)=WeekStartValue,CONCATENATE(\"週 \",WEEKNUM(CalendarDay),\"/日 \",CalendarDay-DATE(YEAR(CalendarDay),1,0)),CONCATENATE(\"日 \",CalendarDay-DATE(YEAR(CalendarDay),1,0)))","v":"週 19/日 126"},{"$f":"IF(WEEKDAY(CalendarDay)=WeekStartValue,CONCATENATE(\"週 \",WEEKNUM(CalendarDay),\"/日 \",CalendarDay-DATE(YEAR(CalendarDay),1,0)),CONCATENATE(\"日 \",CalendarDay-DATE(YEAR(CalendarDay),1,0)))","v":"日 127"},{"$f":"IF(WEEKDAY(CalendarDay)=WeekStartValue,CONCATENATE(\"週 \",WEEKNUM(CalendarDay),\"/日 \",CalendarDay-DATE(YEAR(CalendarDay),1,0)),CONCATENATE(\"日 \",CalendarDay-DATE(YEAR(CalendarDay),1,0)))","v":"日 128"},{"$f":"IF(WEEKDAY(CalendarDay)=WeekStartValue,CONCATENATE(\"週 \",WEEKNUM(CalendarDay),\"/日 \",CalendarDay-DATE(YEAR(CalendarDay),1,0)),CONCATENATE(\"日 \",CalendarDay-DATE(YEAR(CalendarDay),1,0)))","v":"日 129"},{"$f":"IF(WEEKDAY(CalendarDay)=WeekStartValue,CONCATENATE(\"週 \",WEEKNUM(CalendarDay),\"/日 \",CalendarDay-DATE(YEAR(CalendarDay),1,0)),CONCATENATE(\"日 \",CalendarDay-DATE(YEAR(CalendarDay),1,0)))","v":"日 130"},{"$f":"IF(WEEKDAY(CalendarDay)=WeekStartValue,CONCATENATE(\"週 \",WEEKNUM(CalendarDay),\"/日 \",CalendarDay-DATE(YEAR(CalendarDay),1,0)),CONCATENATE(\"日 \",CalendarDay-DATE(YEAR(CalendarDay),1,0)))","v":"日 131"},{"$f":"IF(WEEKDAY(CalendarDay)=WeekStartValue,CONCATENATE(\"週 \",WEEKNUM(CalendarDay),\"/日 \",CalendarDay-DATE(YEAR(CalendarDay),1,0)),CONCATENATE(\"日 \",CalendarDay-DATE(YEAR(CalendarDay),1,0)))","v":"日 132"}]
[]
[null,null,{"$f":"DaysAndWeeks+DATE(CalendarYear,5,1)-WEEKDAY(DATE(CalendarYear,5,1),(WeekStart=\"月\")+1)+15","v":"2018-05-13"},"2018-05-14","2018-05-15","2018-05-16","2018-05-17","2018-05-18","2018-05-19"]
[null,null,{"$f":"IF(WEEKDAY(CalendarDay)=WeekStartValue,CONCATENATE(\"週 \",WEEKNUM(CalendarDay),\"/日 \",CalendarDay-DATE(YEAR(CalendarDay),1,0)),CONCATENATE(\"日 \",CalendarDay-DATE(YEAR(CalendarDay),1,0)))","v":"週 20/日 133"},{"$f":"IF(WEEKDAY(CalendarDay)=WeekStartValue,CONCATENATE(\"週 \",WEEKNUM(CalendarDay),\"/日 \",CalendarDay-DATE(YEAR(CalendarDay),1,0)),CONCATENATE(\"日 \",CalendarDay-DATE(YEAR(CalendarDay),1,0)))","v":"日 134"},{"$f":"IF(WEEKDAY(CalendarDay)=WeekStartValue,CONCATENATE(\"週 \",WEEKNUM(CalendarDay),\"/日 \",CalendarDay-DATE(YEAR(CalendarDay),1,0)),CONCATENATE(\"日 \",CalendarDay-DATE(YEAR(CalendarDay),1,0)))","v":"日 135"},{"$f":"IF(WEEKDAY(CalendarDay)=WeekStartValue,CONCATENATE(\"週 \",WEEKNUM(CalendarDay),\"/日 \",CalendarDay-DATE(YEAR(CalendarDay),1,0)),CONCATENATE(\"日 \",CalendarDay-DATE(YEAR(CalendarDay),1,0)))","v":"日 136"},{"$f":"IF(WEEKDAY(CalendarDay)=WeekStartValue,CONCATENATE(\"週 \",WEEKNUM(CalendarDay),\"/日 \",CalendarDay-DATE(YEAR(CalendarDay),1,0)),CONCATENATE(\"日 \",CalendarDay-DATE(YEAR(CalendarDay),1,0)))","v":"日 137"},{"$f":"IF(WEEKDAY(CalendarDay)=WeekStartValue,CONCATENATE(\"週 \",WEEKNUM(CalendarDay),\"/日 \",CalendarDay-DATE(YEAR(CalendarDay),1,0)),CONCATENATE(\"日 \",CalendarDay-DATE(YEAR(CalendarDay),1,0)))","v":"日 138"},{"$f":"IF(WEEKDAY(CalendarDay)=WeekStartValue,CONCATENATE(\"週 \",WEEKNUM(CalendarDay),\"/日 \",CalendarDay-DATE(YEAR(CalendarDay),1,0)),CONCATENATE(\"日 \",CalendarDay-DATE(YEAR(CalendarDay),1,0)))","v":"日 139"}]
[]
[null,null,{"$f":"DaysAndWeeks+DATE(CalendarYear,5,1)-WEEKDAY(DATE(CalendarYear,5,1),(WeekStart=\"月\")+1)+22","v":"2018-05-20"},"2018-05-21","2018-05-22","2018-05-23","2018-05-24","2018-05-25","2018-05-26"]
[null,null,{"$f":"IF(WEEKDAY(CalendarDay)=WeekStartValue,CONCATENATE(\"週 \",WEEKNUM(CalendarDay),\"/日 \",CalendarDay-DATE(YEAR(CalendarDay),1,0)),CONCATENATE(\"日 \",CalendarDay-DATE(YEAR(CalendarDay),1,0)))","v":"週 21/日 140"},{"$f":"IF(WEEKDAY(CalendarDay)=WeekStartValue,CONCATENATE(\"週 \",WEEKNUM(CalendarDay),\"/日 \",CalendarDay-DATE(YEAR(CalendarDay),1,0)),CONCATENATE(\"日 \",CalendarDay-DATE(YEAR(CalendarDay),1,0)))","v":"日 141"},{"$f":"IF(WEEKDAY(CalendarDay)=WeekStartValue,CONCATENATE(\"週 \",WEEKNUM(CalendarDay),\"/日 \",CalendarDay-DATE(YEAR(CalendarDay),1,0)),CONCATENATE(\"日 \",CalendarDay-DATE(YEAR(CalendarDay),1,0)))","v":"日 142"},{"$f":"IF(WEEKDAY(CalendarDay)=WeekStartValue,CONCATENATE(\"週 \",WEEKNUM(CalendarDay),\"/日 \",CalendarDay-DATE(YEAR(CalendarDay),1,0)),CONCATENATE(\"日 \",CalendarDay-DATE(YEAR(CalendarDay),1,0)))","v":"日 143"},{"$f":"IF(WEEKDAY(CalendarDay)=WeekStartValue,CONCATENATE(\"週 \",WEEKNUM(CalendarDay),\"/日 \",CalendarDay-DATE(YEAR(CalendarDay),1,0)),CONCATENATE(\"日 \",CalendarDay-DATE(YEAR(CalendarDay),1,0)))","v":"日 144"},{"$f":"IF(WEEKDAY(CalendarDay)=WeekStartValue,CONCATENATE(\"週 \",WEEKNUM(CalendarDay),\"/日 \",CalendarDay-DATE(YEAR(CalendarDay),1,0)),CONCATENATE(\"日 \",CalendarDay-DATE(YEAR(CalendarDay),1,0)))","v":"日 145"},{"$f":"IF(WEEKDAY(CalendarDay)=WeekStartValue,CONCATENATE(\"週 \",WEEKNUM(CalendarDay),\"/日 \",CalendarDay-DATE(YEAR(CalendarDay),1,0)),CONCATENATE(\"日 \",CalendarDay-DATE(YEAR(CalendarDay),1,0)))","v":"日 146"}]
[]
[null,null,{"$f":"DaysAndWeeks+DATE(CalendarYear,5,1)-WEEKDAY(DATE(CalendarYear,5,1),(WeekStart=\"月\")+1)+29","v":"2018-05-27"},"2018-05-28","2018-05-29","2018-05-30","2018-05-31","2018-06-01","2018-06-02"]
[null,null,{"$f":"IF(WEEKDAY(CalendarDay)=WeekStartValue,CONCATENATE(\"週 \",WEEKNUM(CalendarDay),\"/日 \",CalendarDay-DATE(YEAR(CalendarDay),1,0)),CONCATENATE(\"日 \",CalendarDay-DATE(YEAR(CalendarDay),1,0)))","v":"週 22/日 147"},{"$f":"IF(WEEKDAY(CalendarDay)=WeekStartValue,CONCATENATE(\"週 \",WEEKNUM(CalendarDay),\"/日 \",CalendarDay-DATE(YEAR(CalendarDay),1,0)),CONCATENATE(\"日 \",CalendarDay-DATE(YEAR(CalendarDay),1,0)))","v":"日 148"},{"$f":"IF(WEEKDAY(CalendarDay)=WeekStartValue,CONCATENATE(\"週 \",WEEKNUM(CalendarDay),\"/日 \",CalendarDay-DATE(YEAR(CalendarDay),1,0)),CONCATENATE(\"日 \",CalendarDay-DATE(YEAR(CalendarDay),1,0)))","v":"日 149"},{"$f":"IF(WEEKDAY(CalendarDay)=WeekStartValue,CONCATENATE(\"週 \",WEEKNUM(CalendarDay),\"/日 \",CalendarDay-DATE(YEAR(CalendarDay),1,0)),CONCATENATE(\"日 \",CalendarDay-DATE(YEAR(CalendarDay),1,0)))","v":"日 150"},{"$f":"IF(WEEKDAY(CalendarDay)=WeekStartValue,CONCATENATE(\"週 \",WEEKNUM(CalendarDay),\"/日 \",CalendarDay-DATE(YEAR(CalendarDay),1,0)),CONCATENATE(\"日 \",CalendarDay-DATE(YEAR(CalendarDay),1,0)))","v":"日 151"},{"$f":"IF(WEEKDAY(CalendarDay)=WeekStartValue,CONCATENATE(\"週 \",WEEKNUM(CalendarDay),\"/日 \",CalendarDay-DATE(YEAR(CalendarDay),1,0)),CONCATENATE(\"日 \",CalendarDay-DATE(YEAR(CalendarDay),1,0)))","v":"日 152"},{"$f":"IF(WEEKDAY(CalendarDay)=WeekStartValue,CONCATENATE(\"週 \",WEEKNUM(CalendarDay),\"/日 \",CalendarDay-DATE(YEAR(CalendarDay),1,0)),CONCATENATE(\"日 \",CalendarDay-DATE(YEAR(CalendarDay),1,0)))","v":"日 153"}]
[{"$nulls":4},"メモ"]
[]
[null,null,{"$f":"DaysAndWeeks+DATE(CalendarYear,5,1)-WEEKDAY(DATE(CalendarYear,5,1),(WeekStart=\"月\")+1)+36","v":"2018-06-03"},"2018-06-04"]
[null,null,{"$f":"IF(WEEKDAY(CalendarDay)=WeekStartValue,CONCATENATE(\"週 \",WEEKNUM(CalendarDay),\"/日 \",CalendarDay-DATE(YEAR(CalendarDay),1,0)),CONCATENATE(\"日 \",CalendarDay-DATE(YEAR(CalendarDay),1,0)))","v":"週 23/日 154"},{"$f":"IF(WEEKDAY(CalendarDay)=WeekStartValue,CONCATENATE(\"週 \",WEEKNUM(CalendarDay),\"/日 \",CalendarDay-DATE(YEAR(CalendarDay),1,0)),CONCATENATE(\"日 \",CalendarDay-DATE(YEAR(CalendarDay),1,0)))","v":"日 155"}]

{"sheet":"6 月","index":5,"n_rows":20,"n_cols":9,"rows_kept":20,"merged":[[16,2,17,2],[17,4,19,8]]}
[null,"6 月",{"$f":"UPPER(TEXT(WeekStart,\"ddd\"))","v":"日"},{"$f":"UPPER(TEXT(D3,\"aaa\"))","v":"月"},"火","水","木","金","土"]
[null,{"$f":"CalendarYear","v":2018}]
[null,null,{"$f":"DaysAndWeeks+DATE(CalendarYear,6,1)-WEEKDAY(DATE(CalendarYear,6,1),(WeekStart=\"月\")+1)+1","v":"2018-05-27"},"2018-05-28","2018-05-29","2018-05-30","2018-05-31","2018-06-01","2018-06-02"]
[null,null,{"$f":"IF(DAY(CalendarDay)=1,CONCATENATE(\"週 \",WEEKNUM(CalendarDay),\"/日 \",CalendarDay-DATE(YEAR(CalendarDay),1,0)),CONCATENATE(\"日 \",CalendarDay-DATE(YEAR(CalendarDay),1,0)))","v":"日 147"},{"$f":"IF(DAY(CalendarDay)=1,CONCATENATE(\"週 \",WEEKNUM(CalendarDay),\"/日 \",CalendarDay-DATE(YEAR(CalendarDay),1,0)),CONCATENATE(\"日 \",CalendarDay-DATE(YEAR(CalendarDay),1,0)))","v":"日 148"},{"$f":"IF(DAY(CalendarDay)=1,CONCATENATE(\"週 \",WEEKNUM(CalendarDay),\"/日 \",CalendarDay-DATE(YEAR(CalendarDay),1,0)),CONCATENATE(\"日 \",CalendarDay-DATE(YEAR(CalendarDay),1,0)))","v":"日 149"},{"$f":"IF(DAY(CalendarDay)=1,CONCATENATE(\"週 \",WEEKNUM(CalendarDay),\"/日 \",CalendarDay-DATE(YEAR(CalendarDay),1,0)),CONCATENATE(\"日 \",CalendarDay-DATE(YEAR(CalendarDay),1,0)))","v":"日 150"},{"$f":"IF(DAY(CalendarDay)=1,CONCATENATE(\"週 \",WEEKNUM(CalendarDay),\"/日 \",CalendarDay-DATE(YEAR(CalendarDay),1,0)),CONCATENATE(\"日 \",CalendarDay-DATE(YEAR(CalendarDay),1,0)))","v":"日 151"},{"$f":"IF(DAY(CalendarDay)=1,CONCATENATE(\"週 \",WEEKNUM(CalendarDay),\"/日 \",CalendarDay-DATE(YEAR(CalendarDay),1,0)),CONCATENATE(\"日 \",CalendarDay-DATE(YEAR(CalendarDay),1,0)))","v":"週 22/日 152"},{"$f":"IF(DAY(CalendarDay)=1,CONCATENATE(\"週 \",WEEKNUM(CalendarDay),\"/日 \",CalendarDay-DATE(YEAR(CalendarDay),1,0)),CONCATENATE(\"日 \",CalendarDay-DATE(YEAR(CalendarDay),1,0)))","v":"日 153"}]
[]
[null,null,{"$f":"DaysAndWeeks+DATE(CalendarYear,6,1)-WEEKDAY(DATE(CalendarYear,6,1),(WeekStart=\"月\")+1)+8","v":"2018-06-03"},"2018-06-04","2018-06-05","2018-06-06","2018-06-07","2018-06-08","2018-06-09"]
[null,null,{"$f":"IF(WEEKDAY(CalendarDay)=WeekStartValue,CONCATENATE(\"週 \",WEEKNUM(CalendarDay),\"/日 \",CalendarDay-DATE(YEAR(CalendarDay),1,0)),CONCATENATE(\"日 \",CalendarDay-DATE(YEAR(CalendarDay),1,0)))","v":"週 23/日 154"},{"$f":"IF(WEEKDAY(CalendarDay)=WeekStartValue,CONCATENATE(\"週 \",WEEKNUM(CalendarDay),\"/日 \",CalendarDay-DATE(YEAR(CalendarDay),1,0)),CONCATENATE(\"日 \",CalendarDay-DATE(YEAR(CalendarDay),1,0)))","v":"日 155"},{"$f":"IF(WEEKDAY(CalendarDay)=WeekStartValue,CONCATENATE(\"週 \",WEEKNUM(CalendarDay),\"/日 \",CalendarDay-DATE(YEAR(CalendarDay),1,0)),CONCATENATE(\"日 \",CalendarDay-DATE(YEAR(CalendarDay),1,0)))","v":"日 156"},{"$f":"IF(WEEKDAY(CalendarDay)=WeekStartValue,CONCATENATE(\"週 \",WEEKNUM(CalendarDay),\"/日 \",CalendarDay-DATE(YEAR(CalendarDay),1,0)),CONCATENATE(\"日 \",CalendarDay-DATE(YEAR(CalendarDay),1,0)))","v":"日 157"},{"$f":"IF(WEEKDAY(CalendarDay)=WeekStartValue,CONCATENATE(\"週 \",WEEKNUM(CalendarDay),\"/日 \",CalendarDay-DATE(YEAR(CalendarDay),1,0)),CONCATENATE(\"日 \",CalendarDay-DATE(YEAR(CalendarDay),1,0)))","v":"日 158"},{"$f":"IF(WEEKDAY(CalendarDay)=WeekStartValue,CONCATENATE(\"週 \",WEEKNUM(CalendarDay),\"/日 \",CalendarDay-DATE(YEAR(CalendarDay),1,0)),CONCATENATE(\"日 \",CalendarDay-DATE(YEAR(CalendarDay),1,0)))","v":"日 159"},{"$f":"IF(WEEKDAY(CalendarDay)=WeekStartValue,CONCATENATE(\"週 \",WEEKNUM(CalendarDay),\"/日 \",CalendarDay-DATE(YEAR(CalendarDay),1,0)),CONCATENATE(\"日 \",CalendarDay-DATE(YEAR(CalendarDay),1,0)))","v":"日 160"}]
[]
[null,null,{"$f":"DaysAndWeeks+DATE(CalendarYear,6,1)-WEEKDAY(DATE(CalendarYear,6,1),(WeekStart=\"月\")+1)+15","v":"2018-06-10"},"2018-06-11","2018-06-12","2018-06-13","2018-06-14","2018-06-15","2018-06-16"]
[null,null,{"$f":"IF(WEEKDAY(CalendarDay)=WeekStartValue,CONCATENATE(\"週 \",WEEKNUM(CalendarDay),\"/日 \",CalendarDay-DATE(YEAR(CalendarDay),1,0)),CONCATENATE(\"日 \",CalendarDay-DATE(YEAR(CalendarDay),1,0)))","v":"週 24/日 161"},{"$f":"IF(WEEKDAY(CalendarDay)=WeekStartValue,CONCATENATE(\"週 \",WEEKNUM(CalendarDay),\"/日 \",CalendarDay-DATE(YEAR(CalendarDay),1,0)),CONCATENATE(\"日 \",CalendarDay-DATE(YEAR(CalendarDay),1,0)))","v":"日 162"},{"$f":"IF(WEEKDAY(CalendarDay)=WeekStartValue,CONCATENATE(\"週 \",WEEKNUM(CalendarDay),\"/日 \",CalendarDay-DATE(YEAR(CalendarDay),1,0)),CONCATENATE(\"日 \",CalendarDay-DATE(YEAR(CalendarDay),1,0)))","v":"日 163"},{"$f":"IF(WEEKDAY(CalendarDay)=WeekStartValue,CONCATENATE(\"週 \",WEEKNUM(CalendarDay),\"/日 \",CalendarDay-DATE(YEAR(CalendarDay),1,0)),CONCATENATE(\"日 \",CalendarDay-DATE(YEAR(CalendarDay),1,0)))","v":"日 164"},{"$f":"IF(WEEKDAY(CalendarDay)=WeekStartValue,CONCATENATE(\"週 \",WEEKNUM(CalendarDay),\"/日 \",CalendarDay-DATE(YEAR(CalendarDay),1,0)),CONCATENATE(\"日 \",CalendarDay-DATE(YEAR(CalendarDay),1,0)))","v":"日 165"},{"$f":"IF(WEEKDAY(CalendarDay)=WeekStartValue,CONCATENATE(\"週 \",WEEKNUM(CalendarDay),\"/日 \",CalendarDay-DATE(YEAR(CalendarDay),1,0)),CONCATENATE(\"日 \",CalendarDay-DATE(YEAR(CalendarDay),1,0)))","v":"日 166"},{"$f":"IF(WEEKDAY(CalendarDay)=WeekStartValue,CONCATENATE(\"週 \",WEEKNUM(CalendarDay),\"/日 \",CalendarDay-DATE(YEAR(CalendarDay),1,0)),CONCATENATE(\"日 \",CalendarDay-DATE(YEAR(CalendarDay),1,0)))","v":"日 167"}]
[]
[null,null,{"$f":"DaysAndWeeks+DATE(CalendarYear,6,1)-WEEKDAY(DATE(CalendarYear,6,1),(WeekStart=\"月\")+1)+22","v":"2018-06-17"},"2018-06-18","2018-06-19","2018-06-20","2018-06-21","2018-06-22","2018-06-23"]
[null,null,{"$f":"IF(WEEKDAY(CalendarDay)=WeekStartValue,CONCATENATE(\"週 \",WEEKNUM(CalendarDay),\"/日 \",CalendarDay-DATE(YEAR(CalendarDay),1,0)),CONCATENATE(\"日 \",CalendarDay-DATE(YEAR(CalendarDay),1,0)))","v":"週 25/日 168"},{"$f":"IF(WEEKDAY(CalendarDay)=WeekStartValue,CONCATENATE(\"週 \",WEEKNUM(CalendarDay),\"/日 \",CalendarDay-DATE(YEAR(CalendarDay),1,0)),CONCATENATE(\"日 \",CalendarDay-DATE(YEAR(CalendarDay),1,0)))","v":"日 169"},{"$f":"IF(WEEKDAY(CalendarDay)=WeekStartValue,CONCATENATE(\"週 \",WEEKNUM(CalendarDay),\"/日 \",CalendarDay-DATE(YEAR(CalendarDay),1,0)),CONCATENATE(\"日 \",CalendarDay-DATE(YEAR(CalendarDay),1,0)))","v":"日 170"},{"$f":"IF(WEEKDAY(CalendarDay)=WeekStartValue,CONCATENATE(\"週 \",WEEKNUM(CalendarDay),\"/日 \",CalendarDay-DATE(YEAR(CalendarDay),1,0)),CONCATENATE(\"日 \",CalendarDay-DATE(YEAR(CalendarDay),1,0)))","v":"日 171"},{"$f":"IF(WEEKDAY(CalendarDay)=WeekStartValue,CONCATENATE(\"週 \",WEEKNUM(CalendarDay),\"/日 \",CalendarDay-DATE(YEAR(CalendarDay),1,0)),CONCATENATE(\"日 \",CalendarDay-DATE(YEAR(CalendarDay),1,0)))","v":"日 172"},{"$f":"IF(WEEKDAY(CalendarDay)=WeekStartValue,CONCATENATE(\"週 \",WEEKNUM(CalendarDay),\"/日 \",CalendarDay-DATE(YEAR(CalendarDay),1,0)),CONCATENATE(\"日 \",CalendarDay-DATE(YEAR(CalendarDay),1,0)))","v":"日 173"},{"$f":"IF(WEEKDAY(CalendarDay)=WeekStartValue,CONCATENATE(\"週 \",WEEKNUM(CalendarDay),\"/日 \",CalendarDay-DATE(YEAR(CalendarDay),1,0)),CONCATENATE(\"日 \",CalendarDay-DATE(YEAR(CalendarDay),1,0)))","v":"日 174"}]
[]
[null,null,{"$f":"DaysAndWeeks+DATE(CalendarYear,6,1)-WEEKDAY(DATE(CalendarYear,6,1),(WeekStart=\"月\")+1)+29","v":"2018-06-24"},"2018-06-25","2018-06-26","2018-06-27","2018-06-28","2018-06-29","2018-06-30"]
[null,null,{"$f":"IF(WEEKDAY(CalendarDay)=WeekStartValue,CONCATENATE(\"週 \",WEEKNUM(CalendarDay),\"/日 \",CalendarDay-DATE(YEAR(CalendarDay),1,0)),CONCATENATE(\"日 \",CalendarDay-DATE(YEAR(CalendarDay),1,0)))","v":"週 26/日 175"},{"$f":"IF(WEEKDAY(CalendarDay)=WeekStartValue,CONCATENATE(\"週 \",WEEKNUM(CalendarDay),\"/日 \",CalendarDay-DATE(YEAR(CalendarDay),1,0)),CONCATENATE(\"日 \",CalendarDay-DATE(YEAR(CalendarDay),1,0)))","v":"日 176"},{"$f":"IF(WEEKDAY(CalendarDay)=WeekStartValue,CONCATENATE(\"週 \",WEEKNUM(CalendarDay),\"/日 \",CalendarDay-DATE(YEAR(CalendarDay),1,0)),CONCATENATE(\"日 \",CalendarDay-DATE(YEAR(CalendarDay),1,0)))","v":"日 177"},{"$f":"IF(WEEKDAY(CalendarDay)=WeekStartValue,CONCATENATE(\"週 \",WEEKNUM(CalendarDay),\"/日 \",CalendarDay-DATE(YEAR(CalendarDay),1,0)),CONCATENATE(\"日 \",CalendarDay-DATE(YEAR(CalendarDay),1,0)))","v":"日 178"},{"$f":"IF(WEEKDAY(CalendarDay)=WeekStartValue,CONCATENATE(\"週 \",WEEKNUM(CalendarDay),\"/日 \",CalendarDay-DATE(YEAR(CalendarDay),1,0)),CONCATENATE(\"日 \",CalendarDay-DATE(YEAR(CalendarDay),1,0)))","v":"日 179"},{"$f":"IF(WEEKDAY(CalendarDay)=WeekStartValue,CONCATENATE(\"週 \",WEEKNUM(CalendarDay),\"/日 \",CalendarDay-DATE(YEAR(CalendarDay),1,0)),CONCATENATE(\"日 \",CalendarDay-DATE(YEAR(CalendarDay),1,0)))","v":"日 180"},{"$f":"IF(WEEKDAY(CalendarDay)=WeekStartValue,CONCATENATE(\"週 \",WEEKNUM(CalendarDay),\"/日 \",CalendarDay-DATE(YEAR(CalendarDay),1,0)),CONCATENATE(\"日 \",CalendarDay-DATE(YEAR(CalendarDay),1,0)))","v":"日 181"}]
[{"$nulls":4},"メモ"]
[]
[null,null,{"$f":"DaysAndWeeks+DATE(CalendarYear,6,1)-WEEKDAY(DATE(CalendarYear,6,1),(WeekStart=\"月\")+1)+36","v":"2018-07-01"},"2018-07-02"]
[null,null,{"$f":"IF(WEEKDAY(CalendarDay)=WeekStartValue,CONCATENATE(\"週 \",WEEKNUM(CalendarDay),\"/日 \",CalendarDay-DATE(YEAR(CalendarDay),1,0)),CONCATENATE(\"日 \",CalendarDay-DATE(YEAR(CalendarDay),1,0)))","v":"週 27/日 182"},{"$f":"IF(WEEKDAY(CalendarDay)=WeekStartValue,CONCATENATE(\"週 \",WEEKNUM(CalendarDay),\"/日 \",CalendarDay-DATE(YEAR(CalendarDay),1,0)),CONCATENATE(\"日 \",CalendarDay-DATE(YEAR(CalendarDay),1,0)))","v":"日 183"}]

{"sheet":"7 月","index":6,"n_rows":20,"n_cols":9,"rows_kept":20,"merged":[[16,2,17,2],[17,4,19,8]]}
[null,"7 月",{"$f":"UPPER(TEXT(WeekStart,\"ddd\"))","v":"日"},{"$f":"UPPER(TEXT(D3,\"aaa\"))","v":"月"},"火","水","木","金","土"]
[null,{"$f":"CalendarYear","v":2018}]
[null,null,{"$f":"DaysAndWeeks+DATE(CalendarYear,7,1)-WEEKDAY(DATE(CalendarYear,7,1),(WeekStart=\"月\")+1)+1","v":"2018-07-01"},"2018-07-02","2018-07-03","2018-07-04","2018-07-05","2018-07-06","2018-07-07"]
[null,null,{"$f":"IF(DAY(CalendarDay)=1,CONCATENATE(\"週 \",WEEKNUM(CalendarDay),\"/日 \",CalendarDay-DATE(YEAR(CalendarDay),1,0)),CONCATENATE(\"日 \",CalendarDay-DATE(YEAR(CalendarDay),1,0)))","v":"週 27/日 182"},{"$f":"IF(DAY(CalendarDay)=1,CONCATENATE(\"週 \",WEEKNUM(CalendarDay),\"/日 \",CalendarDay-DATE(YEAR(CalendarDay),1,0)),CONCATENATE(\"日 \",CalendarDay-DATE(YEAR(CalendarDay),1,0)))","v":"日 183"},{"$f":"IF(DAY(CalendarDay)=1,CONCATENATE(\"週 \",WEEKNUM(CalendarDay),\"/日 \",CalendarDay-DATE(YEAR(CalendarDay),1,0)),CONCATENATE(\"日 \",CalendarDay-DATE(YEAR(CalendarDay),1,0)))","v":"日 184"},{"$f":"IF(DAY(CalendarDay)=1,CONCATENATE(\"週 \",WEEKNUM(CalendarDay),\"/日 \",CalendarDay-DATE(YEAR(CalendarDay),1,0)),CONCATENATE(\"日 \",CalendarDay-DATE(YEAR(CalendarDay),1,0)))","v":"日 185"},{"$f":"IF(DAY(CalendarDay)=1,CONCATENATE(\"週 \",WEEKNUM(CalendarDay),\"/日 \",CalendarDay-DATE(YEAR(CalendarDay),1,0)),CONCATENATE(\"日 \",CalendarDay-DATE(YEAR(CalendarDay),1,0)))","v":"日 186"},{"$f":"IF(DAY(CalendarDay)=1,CONCATENATE(\"週 \",WEEKNUM(CalendarDay),\"/日 \",CalendarDay-DATE(YEAR(CalendarDay),1,0)),CONCATENATE(\"日 \",CalendarDay-DATE(YEAR(CalendarDay),1,0)))","v":"日 187"},{"$f":"IF(DAY(CalendarDay)=1,CONCATENATE(\"週 \",WEEKNUM(CalendarDay),\"/日 \",CalendarDay-DATE(YEAR(CalendarDay),1,0)),CONCATENATE(\"日 \",CalendarDay-DATE(YEAR(CalendarDay),1,0)))","v":"日 188"}]
[]
[null,null,{"$f":"DaysAndWeeks+DATE(CalendarYear,7,1)-WEEKDAY(DATE(CalendarYear,7,1),(WeekStart=\"月\")+1)+8","v":"2018-07-08"},"2018-07-09","2018-07-10","2018-07-11","2018-07-12","2018-07-13","2018-07-14"]
[null,null,{"$f":"IF(WEEKDAY(CalendarDay)=WeekStartValue,CONCATENATE(\"週 \",WEEKNUM(CalendarDay),\"/日 \",CalendarDay-DATE(YEAR(CalendarDay),1,0)),CONCATENATE(\"日 \",CalendarDay-DATE(YEAR(CalendarDay),1,0)))","v":"週 28/日 189"},{"$f":"IF(WEEKDAY(CalendarDay)=WeekStartValue,CONCATENATE(\"週 \",WEEKNUM(CalendarDay),\"/日 \",CalendarDay-DATE(YEAR(CalendarDay),1,0)),CONCATENATE(\"日 \",CalendarDay-DATE(YEAR(CalendarDay),1,0)))","v":"日 190"},{"$f":"IF(WEEKDAY(CalendarDay)=WeekStartValue,CONCATENATE(\"週 \",WEEKNUM(CalendarDay),\"/日 \",CalendarDay-DATE(YEAR(CalendarDay),1,0)),CONCATENATE(\"日 \",CalendarDay-DATE(YEAR(CalendarDay),1,0)))","v":"日 191"},{"$f":"IF(WEEKDAY(CalendarDay)=WeekStartValue,CONCATENATE(\"週 \",WEEKNUM(CalendarDay),\"/日 \",CalendarDay-DATE(YEAR(CalendarDay),1,0)),CONCATENATE(\"日 \",CalendarDay-DATE(YEAR(CalendarDay),1,0)))","v":"日 192"},{"$f":"IF(WEEKDAY(CalendarDay)=WeekStartValue,CONCATENATE(\"週 \",WEEKNUM(CalendarDay),\"/日 \",CalendarDay-DATE(YEAR(CalendarDay),1,0)),CONCATENATE(\"日 \",CalendarDay-DATE(YEAR(CalendarDay),1,0)))","v":"日 193"},{"$f":"IF(WEEKDAY(CalendarDay)=WeekStartValue,CONCATENATE(\"週 \",WEEKNUM(CalendarDay),\"/日 \",CalendarDay-DATE(YEAR(CalendarDay),1,0)),CONCATENATE(\"日 \",CalendarDay-DATE(YEAR(CalendarDay),1,0)))","v":"日 194"},{"$f":"IF(WEEKDAY(CalendarDay)=WeekStartValue,CONCATENATE(\"週 \",WEEKNUM(CalendarDay),\"/日 \",CalendarDay-DATE(YEAR(CalendarDay),1,0)),CONCATENATE(\"日 \",CalendarDay-DATE(YEAR(CalendarDay),1,0)))","v":"日 195"}]
[]
[null,null,{"$f":"DaysAndWeeks+DATE(CalendarYear,7,1)-WEEKDAY(DATE(CalendarYear,7,1),(WeekStart=\"月\")+1)+15","v":"2018-07-15"},"2018-07-16","2018-07-17","2018-07-18","2018-07-19","2018-07-20","2018-07-21"]
[null,null,{"$f":"IF(WEEKDAY(CalendarDay)=WeekStartValue,CONCATENATE(\"週 \",WEEKNUM(CalendarDay),\"/日 \",CalendarDay-DATE(YEAR(CalendarDay),1,0)),CONCATENATE(\"日 \",CalendarDay-DATE(YEAR(CalendarDay),1,0)))","v":"週 29/日 196"},{"$f":"IF(WEEKDAY(CalendarDay)=WeekStartValue,CONCATENATE(\"週 \",WEEKNUM(CalendarDay),\"/日 \",CalendarDay-DATE(YEAR(CalendarDay),1,0)),CONCATENATE(\"日 \",CalendarDay-DATE(YEAR(CalendarDay),1,0)))","v":"日 197"},{"$f":"IF(WEEKDAY(CalendarDay)=WeekStartValue,CONCATENATE(\"週 \",WEEKNUM(CalendarDay),\"/日 \",CalendarDay-DATE(YEAR(CalendarDay),1,0)),CONCATENATE(\"日 \",CalendarDay-DATE(YEAR(CalendarDay),1,0)))","v":"日 198"},{"$f":"IF(WEEKDAY(CalendarDay)=WeekStartValue,CONCATENATE(\"週 \",WEEKNUM(CalendarDay),\"/日 \",CalendarDay-DATE(YEAR(CalendarDay),1,0)),CONCATENATE(\"日 \",CalendarDay-DATE(YEAR(CalendarDay),1,0)))","v":"日 199"},{"$f":"IF(WEEKDAY(CalendarDay)=WeekStartValue,CONCATENATE(\"週 \",WEEKNUM(CalendarDay),\"/日 \",CalendarDay-DATE(YEAR(CalendarDay),1,0)),CONCATENATE(\"日 \",CalendarDay-DATE(YEAR(CalendarDay),1,0)))","v":"日 200"},{"$f":"IF(WEEKDAY(CalendarDay)=WeekStartValue,CONCATENATE(\"週 \",WEEKNUM(CalendarDay),\"/日 \",CalendarDay-DATE(YEAR(CalendarDay),1,0)),CONCATENATE(\"日 \",CalendarDay-DATE(YEAR(CalendarDay),1,0)))","v":"日 201"},{"$f":"IF(WEEKDAY(CalendarDay)=WeekStartValue,CONCATENATE(\"週 \",WEEKNUM(CalendarDay),\"/日 \",CalendarDay-DATE(YEAR(CalendarDay),1,0)),CONCATENATE(\"日 \",CalendarDay-DATE(YEAR(CalendarDay),1,0)))","v":"日 202"}]
[]
[null,null,{"$f":"DaysAndWeeks+DATE(CalendarYear,7,1)-WEEKDAY(DATE(CalendarYear,7,1),(WeekStart=\"月\")+1)+22","v":"2018-07-22"},"2018-07-23","2018-07-24","2018-07-25","2018-07-26","2018-07-27","2018-07-28"]
[null,null,{"$f":"IF(WEEKDAY(CalendarDay)=WeekStartValue,CONCATENATE(\"週 \",WEEKNUM(CalendarDay),\"/日 \",CalendarDay-DATE(YEAR(CalendarDay),1,0)),CONCATENATE(\"日 \",CalendarDay-DATE(YEAR(CalendarDay),1,0)))","v":"週 30/日 203"},{"$f":"IF(WEEKDAY(CalendarDay)=WeekStartValue,CONCATENATE(\"週 \",WEEKNUM(CalendarDay),\"/日 \",CalendarDay-DATE(YEAR(CalendarDay),1,0)),CONCATENATE(\"日 \",CalendarDay-DATE(YEAR(CalendarDay),1,0)))","v":"日 204"},{"$f":"IF(WEEKDAY(CalendarDay)=WeekStartValue,CONCATENATE(\"週 \",WEEKNUM(CalendarDay),\"/日 \",CalendarDay-DATE(YEAR(CalendarDay),1,0)),CONCATENATE(\"日 \",CalendarDay-DATE(YEAR(CalendarDay),1,0)))","v":"日 205"},{"$f":"IF(WEEKDAY(CalendarDay)=WeekStartValue,CONCATENATE(\"週 \",WEEKNUM(CalendarDay),\"/日 \",CalendarDay-DATE(YEAR(CalendarDay),1,0)),CONCATENATE(\"日 \",CalendarDay-DATE(YEAR(CalendarDay),1,0)))","v":"日 206"},{"$f":"IF(WEEKDAY(CalendarDay)=WeekStartValue,CONCATENATE(\"週 \",WEEKNUM(CalendarDay),\"/日 \",CalendarDay-DATE(YEAR(CalendarDay),1,0)),CONCATENATE(\"日 \",CalendarDay-DATE(YEAR(CalendarDay),1,0)))","v":"日 207"},{"$f":"IF(WEEKDAY(CalendarDay)=WeekStartValue,CONCATENATE(\"週 \",WEEKNUM(CalendarDay),\"/日 \",CalendarDay-DATE(YEAR(CalendarDay),1,0)),CONCATENATE(\"日 \",CalendarDay-DATE(YEAR(CalendarDay),1,0)))","v":"日 208"},{"$f":"IF(WEEKDAY(CalendarDay)=WeekStartValue,CONCATENATE(\"週 \",WEEKNUM(CalendarDay),\"/日 \",CalendarDay-DATE(YEAR(CalendarDay),1,0)),CONCATENATE(\"日 \",CalendarDay-DATE(YEAR(CalendarDay),1,0)))","v":"日 209"}]
[]
[null,null,{"$f":"DaysAndWeeks+DATE(CalendarYear,7,1)-WEEKDAY(DATE(CalendarYear,7,1),(WeekStart=\"月\")+1)+29","v":"2018-07-29"},"2018-07-30","2018-07-31","2018-08-01","2018-08-02","2018-08-03","2018-08-04"]
[null,null,{"$f":"IF(WEEKDAY(CalendarDay)=WeekStartValue,CONCATENATE(\"週 \",WEEKNUM(CalendarDay),\"/日 \",CalendarDay-DATE(YEAR(CalendarDay),1,0)),CONCATENATE(\"日 \",CalendarDay-DATE(YEAR(CalendarDay),1,0)))","v":"週 31/日 210"},{"$f":"IF(WEEKDAY(CalendarDay)=WeekStartValue,CONCATENATE(\"週 \",WEEKNUM(CalendarDay),\"/日 \",CalendarDay-DATE(YEAR(CalendarDay),1,0)),CONCATENATE(\"日 \",CalendarDay-DATE(YEAR(CalendarDay),1,0)))","v":"日 211"},{"$f":"IF(WEEKDAY(CalendarDay)=WeekStartValue,CONCATENATE(\"週 \",WEEKNUM(CalendarDay),\"/日 \",CalendarDay-DATE(YEAR(CalendarDay),1,0)),CONCATENATE(\"日 \",CalendarDay-DATE(YEAR(CalendarDay),1,0)))","v":"日 212"},{"$f":"IF(WEEKDAY(CalendarDay)=WeekStartValue,CONCATENATE(\"週 \",WEEKNUM(CalendarDay),\"/日 \",CalendarDay-DATE(YEAR(CalendarDay),1,0)),CONCATENATE(\"日 \",CalendarDay-DATE(YEAR(CalendarDay),1,0)))","v":"日 213"},{"$f":"IF(WEEKDAY(CalendarDay)=WeekStartValue,CONCATENATE(\"週 \",WEEKNUM(CalendarDay),\"/日 \",CalendarDay-DATE(YEAR(CalendarDay),1,0)),CONCATENATE(\"日 \",CalendarDay-DATE(YEAR(CalendarDay),1,0)))","v":"日 214"},{"$f":"IF(WEEKDAY(CalendarDay)=WeekStartValue,CONCATENATE(\"週 \",WEEKNUM(CalendarDay),\"/日 \",CalendarDay-DATE(YEAR(CalendarDay),1,0)),CONCATENATE(\"日 \",CalendarDay-DATE(YEAR(CalendarDay),1,0)))","v":"日 215"},{"$f":"IF(WEEKDAY(CalendarDay)=WeekStartValue,CONCATENATE(\"週 \",WEEKNUM(CalendarDay),\"/日 \",CalendarDay-DATE(YEAR(CalendarDay),1,0)),CONCATENATE(\"日 \",CalendarDay-DATE(YEAR(CalendarDay),1,0)))","v":"日 216"}]
[{"$nulls":4},"メモ"]
[]
[null,null,{"$f":"DaysAndWeeks+DATE(CalendarYear,7,1)-WEEKDAY(DATE(CalendarYear,7,1),(WeekStart=\"月\")+1)+36","v":"2018-08-05"},"2018-08-06"]
[null,null,{"$f":"IF(WEEKDAY(CalendarDay)=WeekStartValue,CONCATENATE(\"週 \",WEEKNUM(CalendarDay),\"/日 \",CalendarDay-DATE(YEAR(CalendarDay),1,0)),CONCATENATE(\"日 \",CalendarDay-DATE(YEAR(CalendarDay),1,0)))","v":"週 32/日 217"},{"$f":"IF(WEEKDAY(CalendarDay)=WeekStartValue,CONCATENATE(\"週 \",WEEKNUM(CalendarDay),\"/日 \",CalendarDay-DATE(YEAR(CalendarDay),1,0)),CONCATENATE(\"日 \",CalendarDay-DATE(YEAR(CalendarDay),1,0)))","v":"日 218"}]

{"sheet":"8 月","index":7,"n_rows":20,"n_cols":9,"rows_kept":20,"merged":[[16,2,17,2],[17,4,19,8]]}
[null,"8 月",{"$f":"UPPER(TEXT(WeekStart,\"ddd\"))","v":"日"},{"$f":"UPPER(TEXT(D3,\"aaa\"))","v":"月"},"火","水","木","金","土"]
[null,{"$f":"CalendarYear","v":2018}]
[null,null,{"$f":"DaysAndWeeks+DATE(CalendarYear,8,1)-WEEKDAY(DATE(CalendarYear,8,1),(WeekStart=\"月\")+1)+1","v":"2018-07-29"},"2018-07-30","2018-07-31","2018-08-01","2018-08-02","2018-08-03","2018-08-04"]
[null,null,{"$f":"IF(DAY(CalendarDay)=1,CONCATENATE(\"週 \",WEEKNUM(CalendarDay),\"/日 \",CalendarDay-DATE(YEAR(CalendarDay),1,0)),CONCATENATE(\"日 \",CalendarDay-DATE(YEAR(CalendarDay),1,0)))","v":"日 210"},{"$f":"IF(DAY(CalendarDay)=1,CONCATENATE(\"週 \",WEEKNUM(CalendarDay),\"/日 \",CalendarDay-DATE(YEAR(CalendarDay),1,0)),CONCATENATE(\"日 \",CalendarDay-DATE(YEAR(CalendarDay),1,0)))","v":"日 211"},{"$f":"IF(DAY(CalendarDay)=1,CONCATENATE(\"週 \",WEEKNUM(CalendarDay),\"/日 \",CalendarDay-DATE(YEAR(CalendarDay),1,0)),CONCATENATE(\"日 \",CalendarDay-DATE(YEAR(CalendarDay),1,0)))","v":"日 212"},{"$f":"IF(DAY(CalendarDay)=1,CONCATENATE(\"週 \",WEEKNUM(CalendarDay),\"/日 \",CalendarDay-DATE(YEAR(CalendarDay),1,0)),CONCATENATE(\"日 \",CalendarDay-DATE(YEAR(CalendarDay),1,0)))","v":"週 31/日 213"},{"$f":"IF(DAY(CalendarDay)=1,CONCATENATE(\"週 \",WEEKNUM(CalendarDay),\"/日 \",CalendarDay-DATE(YEAR(CalendarDay),1,0)),CONCATENATE(\"日 \",CalendarDay-DATE(YEAR(CalendarDay),1,0)))","v":"日 214"},{"$f":"IF(DAY(CalendarDay)=1,CONCATENATE(\"週 \",WEEKNUM(CalendarDay),\"/日 \",CalendarDay-DATE(YEAR(CalendarDay),1,0)),CONCATENATE(\"日 \",CalendarDay-DATE(YEAR(CalendarDay),1,0)))","v":"日 215"},{"$f":"IF(DAY(CalendarDay)=1,CONCATENATE(\"週 \",WEEKNUM(CalendarDay),\"/日 \",CalendarDay-DATE(YEAR(CalendarDay),1,0)),CONCATENATE(\"日 \",CalendarDay-DATE(YEAR(CalendarDay),1,0)))","v":"日 216"}]
[]
[null,null,{"$f":"DaysAndWeeks+DATE(CalendarYear,8,1)-WEEKDAY(DATE(CalendarYear,8,1),(WeekStart=\"月\")+1)+8","v":"2018-08-05"},"2018-08-06","2018-08-07","2018-08-08","2018-08-09","2018-08-10","2018-08-11"]
[null,null,{"$f":"IF(WEEKDAY(CalendarDay)=WeekStartValue,CONCATENATE(\"週 \",WEEKNUM(CalendarDay),\"/日 \",CalendarDay-DATE(YEAR(CalendarDay),1,0)),CONCATENATE(\"日 \",CalendarDay-DATE(YEAR(CalendarDay),1,0)))","v":"週 32/日 217"},{"$f":"IF(WEEKDAY(CalendarDay)=WeekStartValue,CONCATENATE(\"週 \",WEEKNUM(CalendarDay),\"/日 \",CalendarDay-DATE(YEAR(CalendarDay),1,0)),CONCATENATE(\"日 \",CalendarDay-DATE(YEAR(CalendarDay),1,0)))","v":"日 218"},{"$f":"IF(WEEKDAY(CalendarDay)=WeekStartValue,CONCATENATE(\"週 \",WEEKNUM(CalendarDay),\"/日 \",CalendarDay-DATE(YEAR(CalendarDay),1,0)),CONCATENATE(\"日 \",CalendarDay-DATE(YEAR(CalendarDay),1,0)))","v":"日 219"},{"$f":"IF(WEEKDAY(CalendarDay)=WeekStartValue,CONCATENATE(\"週 \",WEEKNUM(CalendarDay),\"/日 \",CalendarDay-DATE(YEAR(CalendarDay),1,0)),CONCATENATE(\"日 \",CalendarDay-DATE(YEAR(CalendarDay),1,0)))","v":"日 220"},{"$f":"IF(WEEKDAY(CalendarDay)=WeekStartValue,CONCATENATE(\"週 \",WEEKNUM(CalendarDay),\"/日 \",CalendarDay-DATE(YEAR(CalendarDay),1,0)),CONCATENATE(\"日 \",CalendarDay-DATE(YEAR(CalendarDay),1,0)))","v":"日 221"},{"$f":"IF(WEEKDAY(CalendarDay)=WeekStartValue,CONCATENATE(\"週 \",WEEKNUM(CalendarDay),\"/日 \",CalendarDay-DATE(YEAR(CalendarDay),1,0)),CONCATENATE(\"日 \",CalendarDay-DATE(YEAR(CalendarDay),1,0)))","v":"日 222"},{"$f":"IF(WEEKDAY(CalendarDay)=WeekStartValue,CONCATENATE(\"週 \",WEEKNUM(CalendarDay),\"/日 \",CalendarDay-DATE(YEAR(CalendarDay),1,0)),CONCATENATE(\"日 \",CalendarDay-DATE(YEAR(CalendarDay),1,0)))","v":"日 223"}]
[]
[null,null,{"$f":"DaysAndWeeks+DATE(CalendarYear,8,1)-WEEKDAY(DATE(CalendarYear,8,1),(WeekStart=\"月\")+1)+15","v":"2018-08-12"},"2018-08-13","2018-08-14","2018-08-15","2018-08-16","2018-08-17","2018-08-18"]
[null,null,{"$f":"IF(WEEKDAY(CalendarDay)=WeekStartValue,CONCATENATE(\"週 \",WEEKNUM(CalendarDay),\"/日 \",CalendarDay-DATE(YEAR(CalendarDay),1,0)),CONCATENATE(\"日 \",CalendarDay-DATE(YEAR(CalendarDay),1,0)))","v":"週 33/日 224"},{"$f":"IF(WEEKDAY(CalendarDay)=WeekStartValue,CONCATENATE(\"週 \",WEEKNUM(CalendarDay),\"/日 \",CalendarDay-DATE(YEAR(CalendarDay),1,0)),CONCATENATE(\"日 \",CalendarDay-DATE(YEAR(CalendarDay),1,0)))","v":"日 225"},{"$f":"IF(WEEKDAY(CalendarDay)=WeekStartValue,CONCATENATE(\"週 \",WEEKNUM(CalendarDay),\"/日 \",CalendarDay-DATE(YEAR(CalendarDay),1,0)),CONCATENATE(\"日 \",CalendarDay-DATE(YEAR(CalendarDay),1,0)))","v":"日 226"},{"$f":"IF(WEEKDAY(CalendarDay)=WeekStartValue,CONCATENATE(\"週 \",WEEKNUM(CalendarDay),\"/日 \",CalendarDay-DATE(YEAR(CalendarDay),1,0)),CONCATENATE(\"日 \",CalendarDay-DATE(YEAR(CalendarDay),1,0)))","v":"日 227"},{"$f":"IF(WEEKDAY(CalendarDay)=WeekStartValue,CONCATENATE(\"週 \",WEEKNUM(CalendarDay),\"/日 \",CalendarDay-DATE(YEAR(CalendarDay),1,0)),CONCATENATE(\"日 \",CalendarDay-DATE(YEAR(CalendarDay),1,0)))","v":"日 228"},{"$f":"IF(WEEKDAY(CalendarDay)=WeekStartValue,CONCATENATE(\"週 \",WEEKNUM(CalendarDay),\"/日 \",CalendarDay-DATE(YEAR(CalendarDay),1,0)),CONCATENATE(\"日 \",CalendarDay-DATE(YEAR(CalendarDay),1,0)))","v":"日 229"},{"$f":"IF(WEEKDAY(CalendarDay)=WeekStartValue,CONCATENATE(\"週 \",WEEKNUM(CalendarDay),\"/日 \",CalendarDay-DATE(YEAR(CalendarDay),1,0)),CONCATENATE(\"日 \",CalendarDay-DATE(YEAR(CalendarDay),1,0)))","v":"日 230"}]
[]
[null,null,{"$f":"DaysAndWeeks+DATE(CalendarYear,8,1)-WEEKDAY(DATE(CalendarYear,8,1),(WeekStart=\"月\")+1)+22","v":"2018-08-19"},"2018-08-20","2018-08-21","2018-08-22","2018-08-23","2018-08-24","2018-08-25"]
[null,null,{"$f":"IF(WEEKDAY(CalendarDay)=WeekStartValue,CONCATENATE(\"週 \",WEEKNUM(CalendarDay),\"/日 \",CalendarDay-DATE(YEAR(CalendarDay),1,0)),CONCATENATE(\"日 \",CalendarDay-DATE(YEAR(CalendarDay),1,0)))","v":"週 34/日 231"},{"$f":"IF(WEEKDAY(CalendarDay)=WeekStartValue,CONCATENATE(\"週 \",WEEKNUM(CalendarDay),\"/日 \",CalendarDay-DATE(YEAR(CalendarDay),1,0)),CONCATENATE(\"日 \",CalendarDay-DATE(YEAR(CalendarDay),1,0)))","v":"日 232"},{"$f":"IF(WEEKDAY(CalendarDay)=WeekStartValue,CONCATENATE(\"週 \",WEEKNUM(CalendarDay),\"/日 \",CalendarDay-DATE(YEAR(CalendarDay),1,0)),CONCATENATE(\"日 \",CalendarDay-DATE(YEAR(CalendarDay),1,0)))","v":"日 233"},{"$f":"IF(WEEKDAY(CalendarDay)=WeekStartValue,CONCATENATE(\"週 \",WEEKNUM(CalendarDay),\"/日 \",CalendarDay-DATE(YEAR(CalendarDay),1,0)),CONCATENATE(\"日 \",CalendarDay-DATE(YEAR(CalendarDay),1,0)))","v":"日 234"},{"$f":"IF(WEEKDAY(CalendarDay)=WeekStartValue,CONCATENATE(\"週 \",WEEKNUM(CalendarDay),\"/日 \",CalendarDay-DATE(YEAR(CalendarDay),1,0)),CONCATENATE(\"日 \",CalendarDay-DATE(YEAR(CalendarDay),1,0)))","v":"日 235"},{"$f":"IF(WEEKDAY(CalendarDay)=WeekStartValue,CONCATENATE(\"週 \",WEEKNUM(CalendarDay),\"/日 \",CalendarDay-DATE(YEAR(CalendarDay),1,0)),CONCATENATE(\"日 \",CalendarDay-DATE(YEAR(CalendarDay),1,0)))","v":"日 236"},{"$f":"IF(WEEKDAY(CalendarDay)=WeekStartValue,CONCATENATE(\"週 \",WEEKNUM(CalendarDay),\"/日 \",CalendarDay-DATE(YEAR(CalendarDay),1,0)),CONCATENATE(\"日 \",CalendarDay-DATE(YEAR(CalendarDay),1,0)))","v":"日 237"}]
[]
[null,null,{"$f":"DaysAndWeeks+DATE(CalendarYear,8,1)-WEEKDAY(DATE(CalendarYear,8,1),(WeekStart=\"月\")+1)+29","v":"2018-08-26"},"2018-08-27","2018-08-28","2018-08-29","2018-08-30","2018-08-31","2018-09-01"]
[null,null,{"$f":"IF(WEEKDAY(CalendarDay)=WeekStartValue,CONCATENATE(\"週 \",WEEKNUM(CalendarDay),\"/日 \",CalendarDay-DATE(YEAR(CalendarDay),1,0)),CONCATENATE(\"日 \",CalendarDay-DATE(YEAR(CalendarDay),1,0)))","v":"週 35/日 238"},{"$f":"IF(WEEKDAY(CalendarDay)=WeekStartValue,CONCATENATE(\"週 \",WEEKNUM(CalendarDay),\"/日 \",CalendarDay-DATE(YEAR(CalendarDay),1,0)),CONCATENATE(\"日 \",CalendarDay-DATE(YEAR(CalendarDay),1,0)))","v":"日 239"},{"$f":"IF(WEEKDAY(CalendarDay)=WeekStartValue,CONCATENATE(\"週 \",WEEKNUM(CalendarDay),\"/日 \",CalendarDay-DATE(YEAR(CalendarDay),1,0)),CONCATENATE(\"日 \",CalendarDay-DATE(YEAR(CalendarDay),1,0)))","v":"日 240"},{"$f":"IF(WEEKDAY(CalendarDay)=WeekStartValue,CONCATENATE(\"週 \",WEEKNUM(CalendarDay),\"/日 \",CalendarDay-DATE(YEAR(CalendarDay),1,0)),CONCATENATE(\"日 \",CalendarDay-DATE(YEAR(CalendarDay),1,0)))","v":"日 241"},{"$f":"IF(WEEKDAY(CalendarDay)=WeekStartValue,CONCATENATE(\"週 \",WEEKNUM(CalendarDay),\"/日 \",CalendarDay-DATE(YEAR(CalendarDay),1,0)),CONCATENATE(\"日 \",CalendarDay-DATE(YEAR(CalendarDay),1,0)))","v":"日 242"},{"$f":"IF(WEEKDAY(CalendarDay)=WeekStartValue,CONCATENATE(\"週 \",WEEKNUM(CalendarDay),\"/日 \",CalendarDay-DATE(YEAR(CalendarDay),1,0)),CONCATENATE(\"日 \",CalendarDay-DATE(YEAR(CalendarDay),1,0)))","v":"日 243"},{"$f":"IF(WEEKDAY(CalendarDay)=WeekStartValue,CONCATENATE(\"週 \",WEEKNUM(CalendarDay),\"/日 \",CalendarDay-DATE(YEAR(CalendarDay),1,0)),CONCATENATE(\"日 \",CalendarDay-DATE(YEAR(CalendarDay),1,0)))","v":"日 244"}]
[{"$nulls":4},"メモ"]
[]
[null,null,{"$f":"DaysAndWeeks+DATE(CalendarYear,8,1)-WEEKDAY(DATE(CalendarYear,8,1),(WeekStart=\"月\")+1)+36","v":"2018-09-02"},"2018-09-03"]
[null,null,{"$f":"IF(WEEKDAY(CalendarDay)=WeekStartValue,CONCATENATE(\"週 \",WEEKNUM(CalendarDay),\"/日 \",CalendarDay-DATE(YEAR(CalendarDay),1,0)),CONCATENATE(\"日 \",CalendarDay-DATE(YEAR(CalendarDay),1,0)))","v":"週 36/日 245"},{"$f":"IF(WEEKDAY(CalendarDay)=WeekStartValue,CONCATENATE(\"週 \",WEEKNUM(CalendarDay),\"/日 \",CalendarDay-DATE(YEAR(CalendarDay),1,0)),CONCATENATE(\"日 \",CalendarDay-DATE(YEAR(CalendarDay),1,0)))","v":"日 246"}]

{"sheet":"9 月","index":8,"n_rows":20,"n_cols":9,"rows_kept":20,"merged":[[16,2,17,2],[17,4,19,8]]}
[null,"9 月",{"$f":"UPPER(TEXT(WeekStart,\"ddd\"))","v":"日"},{"$f":"UPPER(TEXT(D3,\"aaa\"))","v":"月"},"火","水","木","金","土"]
[null,{"$f":"CalendarYear","v":2018}]
[null,null,{"$f":"DaysAndWeeks+DATE(CalendarYear,9,1)-WEEKDAY(DATE(CalendarYear,9,1),(WeekStart=\"月\")+1)+1","v":"2018-08-26"},"2018-08-27","2018-08-28","2018-08-29","2018-08-30","2018-08-31","2018-09-01"]
[null,null,{"$f":"IF(DAY(CalendarDay)=1,CONCATENATE(\"週 \",WEEKNUM(CalendarDay),\"/日 \",CalendarDay-DATE(YEAR(CalendarDay),1,0)),CONCATENATE(\"日 \",CalendarDay-DATE(YEAR(CalendarDay),1,0)))","v":"日 238"},{"$f":"IF(DAY(CalendarDay)=1,CONCATENATE(\"週 \",WEEKNUM(CalendarDay),\"/日 \",CalendarDay-DATE(YEAR(CalendarDay),1,0)),CONCATENATE(\"日 \",CalendarDay-DATE(YEAR(CalendarDay),1,0)))","v":"日 239"},{"$f":"IF(DAY(CalendarDay)=1,CONCATENATE(\"週 \",WEEKNUM(CalendarDay),\"/日 \",CalendarDay-DATE(YEAR(CalendarDay),1,0)),CONCATENATE(\"日 \",CalendarDay-DATE(YEAR(CalendarDay),1,0)))","v":"日 240"},{"$f":"IF(DAY(CalendarDay)=1,CONCATENATE(\"週 \",WEEKNUM(CalendarDay),\"/日 \",CalendarDay-DATE(YEAR(CalendarDay),1,0)),CONCATENATE(\"日 \",CalendarDay-DATE(YEAR(CalendarDay),1,0)))","v":"日 241"},{"$f":"IF(DAY(CalendarDay)=1,CONCATENATE(\"週 \",WEEKNUM(CalendarDay),\"/日 \",CalendarDay-DATE(YEAR(CalendarDay),1,0)),CONCATENATE(\"日 \",CalendarDay-DATE(YEAR(CalendarDay),1,0)))","v":"日 242"},{"$f":"IF(DAY(CalendarDay)=1,CONCATENATE(\"週 \",WEEKNUM(CalendarDay),\"/日 \",CalendarDay-DATE(YEAR(CalendarDay),1,0)),CONCATENATE(\"日 \",CalendarDay-DATE(YEAR(CalendarDay),1,0)))","v":"日 243"},{"$f":"IF(DAY(CalendarDay)=1,CONCATENATE(\"週 \",WEEKNUM(CalendarDay),\"/日 \",CalendarDay-DATE(YEAR(CalendarDay),1,0)),CONCATENATE(\"日 \",CalendarDay-DATE(YEAR(CalendarDay),1,0)))","v":"週 35/日 244"}]
[]
[null,null,{"$f":"DaysAndWeeks+DATE(CalendarYear,9,1)-WEEKDAY(DATE(CalendarYear,9,1),(WeekStart=\"月\")+1)+8","v":"2018-09-02"},"2018-09-03","2018-09-04","2018-09-05","2018-09-06","2018-09-07","2018-09-08"]
[null,null,{"$f":"IF(WEEKDAY(CalendarDay)=WeekStartValue,CONCATENATE(\"週 \",WEEKNUM(CalendarDay),\"/日 \",CalendarDay-DATE(YEAR(CalendarDay),1,0)),CONCATENATE(\"日 \",CalendarDay-DATE(YEAR(CalendarDay),1,0)))","v":"週 36/日 245"},{"$f":"IF(WEEKDAY(CalendarDay)=WeekStartValue,CONCATENATE(\"週 \",WEEKNUM(CalendarDay),\"/日 \",CalendarDay-DATE(YEAR(CalendarDay),1,0)),CONCATENATE(\"日 \",CalendarDay-DATE(YEAR(CalendarDay),1,0)))","v":"日 246"},{"$f":"IF(WEEKDAY(CalendarDay)=WeekStartValue,CONCATENATE(\"週 \",WEEKNUM(CalendarDay),\"/日 \",CalendarDay-DATE(YEAR(CalendarDay),1,0)),CONCATENATE(\"日 \",CalendarDay-DATE(YEAR(CalendarDay),1,0)))","v":"日 247"},{"$f":"IF(WEEKDAY(CalendarDay)=WeekStartValue,CONCATENATE(\"週 \",WEEKNUM(CalendarDay),\"/日 \",CalendarDay-DATE(YEAR(CalendarDay),1,0)),CONCATENATE(\"日 \",CalendarDay-DATE(YEAR(CalendarDay),1,0)))","v":"日 248"},{"$f":"IF(WEEKDAY(CalendarDay)=WeekStartValue,CONCATENATE(\"週 \",WEEKNUM(CalendarDay),\"/日 \",CalendarDay-DATE(YEAR(CalendarDay),1,0)),CONCATENATE(\"日 \",CalendarDay-DATE(YEAR(CalendarDay),1,0)))","v":"日 249"},{"$f":"IF(WEEKDAY(CalendarDay)=WeekStartValue,CONCATENATE(\"週 \",WEEKNUM(CalendarDay),\"/日 \",CalendarDay-DATE(YEAR(CalendarDay),1,0)),CONCATENATE(\"日 \",CalendarDay-DATE(YEAR(CalendarDay),1,0)))","v":"日 250"},{"$f":"IF(WEEKDAY(CalendarDay)=WeekStartValue,CONCATENATE(\"週 \",WEEKNUM(CalendarDay),\"/日 \",CalendarDay-DATE(YEAR(CalendarDay),1,0)),CONCATENATE(\"日 \",CalendarDay-DATE(YEAR(CalendarDay),1,0)))","v":"日 251"}]
[]
[null,null,{"$f":"DaysAndWeeks+DATE(CalendarYear,9,1)-WEEKDAY(DATE(CalendarYear,9,1),(WeekStart=\"月\")+1)+15","v":"2018-09-09"},"2018-09-10","2018-09-11","2018-09-12","2018-09-13","2018-09-14","2018-09-15"]
[null,null,{"$f":"IF(WEEKDAY(CalendarDay)=WeekStartValue,CONCATENATE(\"週 \",WEEKNUM(CalendarDay),\"/日 \",CalendarDay-DATE(YEAR(CalendarDay),1,0)),CONCATENATE(\"日 \",CalendarDay-DATE(YEAR(CalendarDay),1,0)))","v":"週 37/日 252"},{"$f":"IF(WEEKDAY(CalendarDay)=WeekStartValue,CONCATENATE(\"週 \",WEEKNUM(CalendarDay),\"/日 \",CalendarDay-DATE(YEAR(CalendarDay),1,0)),CONCATENATE(\"日 \",CalendarDay-DATE(YEAR(CalendarDay),1,0)))","v":"日 253"},{"$f":"IF(WEEKDAY(CalendarDay)=WeekStartValue,CONCATENATE(\"週 \",WEEKNUM(CalendarDay),\"/日 \",CalendarDay-DATE(YEAR(CalendarDay),1,0)),CONCATENATE(\"日 \",CalendarDay-DATE(YEAR(CalendarDay),1,0)))","v":"日 254"},{"$f":"IF(WEEKDAY(CalendarDay)=WeekStartValue,CONCATENATE(\"週 \",WEEKNUM(CalendarDay),\"/日 \",CalendarDay-DATE(YEAR(CalendarDay),1,0)),CONCATENATE(\"日 \",CalendarDay-DATE(YEAR(CalendarDay),1,0)))","v":"日 255"},{"$f":"IF(WEEKDAY(CalendarDay)=WeekStartValue,CONCATENATE(\"週 \",WEEKNUM(CalendarDay),\"/日 \",CalendarDay-DATE(YEAR(CalendarDay),1,0)),CONCATENATE(\"日 \",CalendarDay-DATE(YEAR(CalendarDay),1,0)))","v":"日 256"},{"$f":"IF(WEEKDAY(CalendarDay)=WeekStartValue,CONCATENATE(\"週 \",WEEKNUM(CalendarDay),\"/日 \",CalendarDay-DATE(YEAR(CalendarDay),1,0)),CONCATENATE(\"日 \",CalendarDay-DATE(YEAR(CalendarDay),1,0)))","v":"日 257"},{"$f":"IF(WEEKDAY(CalendarDay)=WeekStartValue,CONCATENATE(\"週 \",WEEKNUM(CalendarDay),\"/日 \",CalendarDay-DATE(YEAR(CalendarDay),1,0)),CONCATENATE(\"日 \",CalendarDay-DATE(YEAR(CalendarDay),1,0)))","v":"日 258"}]
[]
[null,null,{"$f":"DaysAndWeeks+DATE(CalendarYear,9,1)-WEEKDAY(DATE(CalendarYear,9,1),(WeekStart=\"月\")+1)+22","v":"2018-09-16"},"2018-09-17","2018-09-18","2018-09-19","2018-09-20","2018-09-21","2018-09-22"]
[null,null,{"$f":"IF(WEEKDAY(CalendarDay)=WeekStartValue,CONCATENATE(\"週 \",WEEKNUM(CalendarDay),\"/日 \",CalendarDay-DATE(YEAR(CalendarDay),1,0)),CONCATENATE(\"日 \",CalendarDay-DATE(YEAR(CalendarDay),1,0)))","v":"週 38/日 259"},{"$f":"IF(WEEKDAY(CalendarDay)=WeekStartValue,CONCATENATE(\"週 \",WEEKNUM(CalendarDay),\"/日 \",CalendarDay-DATE(YEAR(CalendarDay),1,0)),CONCATENATE(\"日 \",CalendarDay-DATE(YEAR(CalendarDay),1,0)))","v":"日 260"},{"$f":"IF(WEEKDAY(CalendarDay)=WeekStartValue,CONCATENATE(\"週 \",WEEKNUM(CalendarDay),\"/日 \",CalendarDay-DATE(YEAR(CalendarDay),1,0)),CONCATENATE(\"日 \",CalendarDay-DATE(YEAR(CalendarDay),1,0)))","v":"日 261"},{"$f":"IF(WEEKDAY(CalendarDay)=WeekStartValue,CONCATENATE(\"週 \",WEEKNUM(CalendarDay),\"/日 \",CalendarDay-DATE(YEAR(CalendarDay),1,0)),CONCATENATE(\"日 \",CalendarDay-DATE(YEAR(CalendarDay),1,0)))","v":"日 262"},{"$f":"IF(WEEKDAY(CalendarDay)=WeekStartValue,CONCATENATE(\"週 \",WEEKNUM(CalendarDay),\"/日 \",CalendarDay-DATE(YEAR(CalendarDay),1,0)),CONCATENATE(\"日 \",CalendarDay-DATE(YEAR(CalendarDay),1,0)))","v":"日 263"},{"$f":"IF(WEEKDAY(CalendarDay)=WeekStartValue,CONCATENATE(\"週 \",WEEKNUM(CalendarDay),\"/日 \",CalendarDay-DATE(YEAR(CalendarDay),1,0)),CONCATENATE(\"日 \",CalendarDay-DATE(YEAR(CalendarDay),1,0)))","v":"日 264"},{"$f":"IF(WEEKDAY(CalendarDay)=WeekStartValue,CONCATENATE(\"週 \",WEEKNUM(CalendarDay),\"/日 \",CalendarDay-DATE(YEAR(CalendarDay),1,0)),CONCATENATE(\"日 \",CalendarDay-DATE(YEAR(CalendarDay),1,0)))","v":"日 265"}]
[]
[null,null,{"$f":"DaysAndWeeks+DATE(CalendarYear,9,1)-WEEKDAY(DATE(CalendarYear,9,1),(WeekStart=\"月\")+1)+29","v":"2018-09-23"},"2018-09-24","2018-09-25","2018-09-26","2018-09-27","2018-09-28","2018-09-29"]
[null,null,{"$f":"IF(WEEKDAY(CalendarDay)=WeekStartValue,CONCATENATE(\"週 \",WEEKNUM(CalendarDay),\"/日 \",CalendarDay-DATE(YEAR(CalendarDay),1,0)),CONCATENATE(\"日 \",CalendarDay-DATE(YEAR(CalendarDay),1,0)))","v":"週 39/日 266"},{"$f":"IF(WEEKDAY(CalendarDay)=WeekStartValue,CONCATENATE(\"週 \",WEEKNUM(CalendarDay),\"/日 \",CalendarDay-DATE(YEAR(CalendarDay),1,0)),CONCATENATE(\"日 \",CalendarDay-DATE(YEAR(CalendarDay),1,0)))","v":"日 267"},{"$f":"IF(WEEKDAY(CalendarDay)=WeekStartValue,CONCATENATE(\"週 \",WEEKNUM(CalendarDay),\"/日 \",CalendarDay-DATE(YEAR(CalendarDay),1,0)),CONCATENATE(\"日 \",CalendarDay-DATE(YEAR(CalendarDay),1,0)))","v":"日 268"},{"$f":"IF(WEEKDAY(CalendarDay)=WeekStartValue,CONCATENATE(\"週 \",WEEKNUM(CalendarDay),\"/日 \",CalendarDay-DATE(YEAR(CalendarDay),1,0)),CONCATENATE(\"日 \",CalendarDay-DATE(YEAR(CalendarDay),1,0)))","v":"日 269"},{"$f":"IF(WEEKDAY(CalendarDay)=WeekStartValue,CONCATENATE(\"週 \",WEEKNUM(CalendarDay),\"/日 \",CalendarDay-DATE(YEAR(CalendarDay),1,0)),CONCATENATE(\"日 \",CalendarDay-DATE(YEAR(CalendarDay),1,0)))","v":"日 270"},{"$f":"IF(WEEKDAY(CalendarDay)=WeekStartValue,CONCATENATE(\"週 \",WEEKNUM(CalendarDay),\"/日 \",CalendarDay-DATE(YEAR(CalendarDay),1,0)),CONCATENATE(\"日 \",CalendarDay-DATE(YEAR(CalendarDay),1,0)))","v":"日 271"},{"$f":"IF(WEEKDAY(CalendarDay)=WeekStartValue,CONCATENATE(\"週 \",WEEKNUM(CalendarDay),\"/日 \",CalendarDay-DATE(YEAR(CalendarDay),1,0)),CONCATENATE(\"日 \",CalendarDay-DATE(YEAR(CalendarDay),1,0)))","v":"日 272"}]
[{"$nulls":4},"メモ"]
[]
[null,null,{"$f":"DaysAndWeeks+DATE(CalendarYear,9,1)-WEEKDAY(DATE(CalendarYear,9,1),(WeekStart=\"月\")+1)+36","v":"2018-09-30"},"2018-10-01"]
[null,null,{"$f":"IF(WEEKDAY(CalendarDay)=WeekStartValue,CONCATENATE(\"週 \",WEEKNUM(CalendarDay),\"/日 \",CalendarDay-DATE(YEAR(CalendarDay),1,0)),CONCATENATE(\"日 \",CalendarDay-DATE(YEAR(CalendarDay),1,0)))","v":"週 40/日 273"},{"$f":"IF(WEEKDAY(CalendarDay)=WeekStartValue,CONCATENATE(\"週 \",WEEKNUM(CalendarDay),\"/日 \",CalendarDay-DATE(YEAR(CalendarDay),1,0)),CONCATENATE(\"日 \",CalendarDay-DATE(YEAR(CalendarDay),1,0)))","v":"日 274"}]

{"sheet":"10 月","index":9,"n_rows":20,"n_cols":9,"rows_kept":20,"merged":[[16,2,17,2],[17,4,19,8]]}
[null,"10 月",{"$f":"UPPER(TEXT(WeekStart,\"ddd\"))","v":"日"},{"$f":"UPPER(TEXT(D3,\"aaa\"))","v":"月"},"火","水","木","金","土"]
[null,{"$f":"CalendarYear","v":2018}]
[null,null,{"$f":"DaysAndWeeks+DATE(CalendarYear,10,1)-WEEKDAY(DATE(CalendarYear,10,1),(WeekStart=\"月\")+1)+1","v":"2018-09-30"},"2018-10-01","2018-10-02","2018-10-03","2018-10-04","2018-10-05","2018-10-06"]
[null,null,{"$f":"IF(DAY(CalendarDay)=1,CONCATENATE(\"週 \",WEEKNUM(CalendarDay),\"/日 \",CalendarDay-DATE(YEAR(CalendarDay),1,0)),CONCATENATE(\"日 \",CalendarDay-DATE(YEAR(CalendarDay),1,0)))","v":"日 273"},{"$f":"IF(DAY(CalendarDay)=1,CONCATENATE(\"週 \",WEEKNUM(CalendarDay),\"/日 \",CalendarDay-DATE(YEAR(CalendarDay),1,0)),CONCATENATE(\"日 \",CalendarDay-DATE(YEAR(CalendarDay),1,0)))","v":"週 40/日 274"},{"$f":"IF(DAY(CalendarDay)=1,CONCATENATE(\"週 \",WEEKNUM(CalendarDay),\"/日 \",CalendarDay-DATE(YEAR(CalendarDay),1,0)),CONCATENATE(\"日 \",CalendarDay-DATE(YEAR(CalendarDay),1,0)))","v":"日 275"},{"$f":"IF(DAY(CalendarDay)=1,CONCATENATE(\"週 \",WEEKNUM(CalendarDay),\"/日 \",CalendarDay-DATE(YEAR(CalendarDay),1,0)),CONCATENATE(\"日 \",CalendarDay-DATE(YEAR(CalendarDay),1,0)))","v":"日 276"},{"$f":"IF(DAY(CalendarDay)=1,CONCATENATE(\"週 \",WEEKNUM(CalendarDay),\"/日 \",CalendarDay-DATE(YEAR(CalendarDay),1,0)),CONCATENATE(\"日 \",CalendarDay-DATE(YEAR(CalendarDay),1,0)))","v":"日 277"},{"$f":"IF(DAY(CalendarDay)=1,CONCATENATE(\"週 \",WEEKNUM(CalendarDay),\"/日 \",CalendarDay-DATE(YEAR(CalendarDay),1,0)),CONCATENATE(\"日 \",CalendarDay-DATE(YEAR(CalendarDay),1,0)))","v":"日 278"},{"$f":"IF(DAY(CalendarDay)=1,CONCATENATE(\"週 \",WEEKNUM(CalendarDay),\"/日 \",CalendarDay-DATE(YEAR(CalendarDay),1,0)),CONCATENATE(\"日 \",CalendarDay-DATE(YEAR(CalendarDay),1,0)))","v":"日 279"}]
[]
[null,null,{"$f":"DaysAndWeeks+DATE(CalendarYear,10,1)-WEEKDAY(DATE(CalendarYear,10,1),(WeekStart=\"月\")+1)+8","v":"2018-10-07"},"2018-10-08","2018-10-09","2018-10-10","2018-10-11","2018-10-12","2018-10-13"]
[null,null,{"$f":"IF(WEEKDAY(CalendarDay)=WeekStartValue,CONCATENATE(\"週 \",WEEKNUM(CalendarDay),\"/日 \",CalendarDay-DATE(YEAR(CalendarDay),1,0)),CONCATENATE(\"日 \",CalendarDay-DATE(YEAR(CalendarDay),1,0)))","v":"週 41/日 280"},{"$f":"IF(WEEKDAY(CalendarDay)=WeekStartValue,CONCATENATE(\"週 \",WEEKNUM(CalendarDay),\"/日 \",CalendarDay-DATE(YEAR(CalendarDay),1,0)),CONCATENATE(\"日 \",CalendarDay-DATE(YEAR(CalendarDay),1,0)))","v":"日 281"},{"$f":"IF(WEEKDAY(CalendarDay)=WeekStartValue,CONCATENATE(\"週 \",WEEKNUM(CalendarDay),\"/日 \",CalendarDay-DATE(YEAR(CalendarDay),1,0)),CONCATENATE(\"日 \",CalendarDay-DATE(YEAR(CalendarDay),1,0)))","v":"日 282"},{"$f":"IF(WEEKDAY(CalendarDay)=WeekStartValue,CONCATENATE(\"週 \",WEEKNUM(CalendarDay),\"/日 \",CalendarDay-DATE(YEAR(CalendarDay),1,0)),CONCATENATE(\"日 \",CalendarDay-DATE(YEAR(CalendarDay),1,0)))","v":"日 283"},{"$f":"IF(WEEKDAY(CalendarDay)=WeekStartValue,CONCATENATE(\"週 \",WEEKNUM(CalendarDay),\"/日 \",CalendarDay-DATE(YEAR(CalendarDay),1,0)),CONCATENATE(\"日 \",CalendarDay-DATE(YEAR(CalendarDay),1,0)))","v":"日 284"},{"$f":"IF(WEEKDAY(CalendarDay)=WeekStartValue,CONCATENATE(\"週 \",WEEKNUM(CalendarDay),\"/日 \",CalendarDay-DATE(YEAR(CalendarDay),1,0)),CONCATENATE(\"日 \",CalendarDay-DATE(YEAR(CalendarDay),1,0)))","v":"日 285"},{"$f":"IF(WEEKDAY(CalendarDay)=WeekStartValue,CONCATENATE(\"週 \",WEEKNUM(CalendarDay),\"/日 \",CalendarDay-DATE(YEAR(CalendarDay),1,0)),CONCATENATE(\"日 \",CalendarDay-DATE(YEAR(CalendarDay),1,0)))","v":"日 286"}]
[]
[null,null,{"$f":"DaysAndWeeks+DATE(CalendarYear,10,1)-WEEKDAY(DATE(CalendarYear,10,1),(WeekStart=\"月\")+1)+15","v":"2018-10-14"},"2018-10-15","2018-10-16","2018-10-17","2018-10-18","2018-10-19","2018-10-20"]
[null,null,{"$f":"IF(WEEKDAY(CalendarDay)=WeekStartValue,CONCATENATE(\"週 \",WEEKNUM(CalendarDay),\"/日 \",CalendarDay-DATE(YEAR(CalendarDay),1,0)),CONCATENATE(\"日 \",CalendarDay-DATE(YEAR(CalendarDay),1,0)))","v":"週 42/日 287"},{"$f":"IF(WEEKDAY(CalendarDay)=WeekStartValue,CONCATENATE(\"週 \",WEEKNUM(CalendarDay),\"/日 \",CalendarDay-DATE(YEAR(CalendarDay),1,0)),CONCATENATE(\"日 \",CalendarDay-DATE(YEAR(CalendarDay),1,0)))","v":"日 288"},{"$f":"IF(WEEKDAY(CalendarDay)=WeekStartValue,CONCATENATE(\"週 \",WEEKNUM(CalendarDay),\"/日 \",CalendarDay-DATE(YEAR(CalendarDay),1,0)),CONCATENATE(\"日 \",CalendarDay-DATE(YEAR(CalendarDay),1,0)))","v":"日 289"},{"$f":"IF(WEEKDAY(CalendarDay)=WeekStartValue,CONCATENATE(\"週 \",WEEKNUM(CalendarDay),\"/日 \",CalendarDay-DATE(YEAR(CalendarDay),1,0)),CONCATENATE(\"日 \",CalendarDay-DATE(YEAR(CalendarDay),1,0)))","v":"日 290"},{"$f":"IF(WEEKDAY(CalendarDay)=WeekStartValue,CONCATENATE(\"週 \",WEEKNUM(CalendarDay),\"/日 \",CalendarDay-DATE(YEAR(CalendarDay),1,0)),CONCATENATE(\"日 \",CalendarDay-DATE(YEAR(CalendarDay),1,0)))","v":"日 291"},{"$f":"IF(WEEKDAY(CalendarDay)=WeekStartValue,CONCATENATE(\"週 \",WEEKNUM(CalendarDay),\"/日 \",CalendarDay-DATE(YEAR(CalendarDay),1,0)),CONCATENATE(\"日 \",CalendarDay-DATE(YEAR(CalendarDay),1,0)))","v":"日 292"},{"$f":"IF(WEEKDAY(CalendarDay)=WeekStartValue,CONCATENATE(\"週 \",WEEKNUM(CalendarDay),\"/日 \",CalendarDay-DATE(YEAR(CalendarDay),1,0)),CONCATENATE(\"日 \",CalendarDay-DATE(YEAR(CalendarDay),1,0)))","v":"日 293"}]
[]
[null,null,{"$f":"DaysAndWeeks+DATE(CalendarYear,10,1)-WEEKDAY(DATE(CalendarYear,10,1),(WeekStart=\"月\")+1)+22","v":"2018-10-21"},"2018-10-22","2018-10-23","2018-10-24","2018-10-25","2018-10-26","2018-10-27"]
[null,null,{"$f":"IF(WEEKDAY(CalendarDay)=WeekStartValue,CONCATENATE(\"週 \",WEEKNUM(CalendarDay),\"/日 \",CalendarDay-DATE(YEAR(CalendarDay),1,0)),CONCATENATE(\"日 \",CalendarDay-DATE(YEAR(CalendarDay),1,0)))","v":"週 43/日 294"},{"$f":"IF(WEEKDAY(CalendarDay)=WeekStartValue,CONCATENATE(\"週 \",WEEKNUM(CalendarDay),\"/日 \",CalendarDay-DATE(YEAR(CalendarDay),1,0)),CONCATENATE(\"日 \",CalendarDay-DATE(YEAR(CalendarDay),1,0)))","v":"日 295"},{"$f":"IF(WEEKDAY(CalendarDay)=WeekStartValue,CONCATENATE(\"週 \",WEEKNUM(CalendarDay),\"/日 \",CalendarDay-DATE(YEAR(CalendarDay),1,0)),CONCATENATE(\"日 \",CalendarDay-DATE(YEAR(CalendarDay),1,0)))","v":"日 296"},{"$f":"IF(WEEKDAY(CalendarDay)=WeekStartValue,CONCATENATE(\"週 \",WEEKNUM(CalendarDay),\"/日 \",CalendarDay-DATE(YEAR(CalendarDay),1,0)),CONCATENATE(\"日 \",CalendarDay-DATE(YEAR(CalendarDay),1,0)))","v":"日 297"},{"$f":"IF(WEEKDAY(CalendarDay)=WeekStartValue,CONCATENATE(\"週 \",WEEKNUM(CalendarDay),\"/日 \",CalendarDay-DATE(YEAR(CalendarDay),1,0)),CONCATENATE(\"日 \",CalendarDay-DATE(YEAR(CalendarDay),1,0)))","v":"日 298"},{"$f":"IF(WEEKDAY(CalendarDay)=WeekStartValue,CONCATENATE(\"週 \",WEEKNUM(CalendarDay),\"/日 \",CalendarDay-DATE(YEAR(CalendarDay),1,0)),CONCATENATE(\"日 \",CalendarDay-DATE(YEAR(CalendarDay),1,0)))","v":"日 299"},{"$f":"IF(WEEKDAY(CalendarDay)=WeekStartValue,CONCATENATE(\"週 \",WEEKNUM(CalendarDay),\"/日 \",CalendarDay-DATE(YEAR(CalendarDay),1,0)),CONCATENATE(\"日 \",CalendarDay-DATE(YEAR(CalendarDay),1,0)))","v":"日 300"}]
[]
[null,null,{"$f":"DaysAndWeeks+DATE(CalendarYear,10,1)-WEEKDAY(DATE(CalendarYear,10,1),(WeekStart=\"月\")+1)+29","v":"2018-10-28"},"2018-10-29","2018-10-30","2018-10-31","2018-11-01","2018-11-02","2018-11-03"]
[null,null,{"$f":"IF(WEEKDAY(CalendarDay)=WeekStartValue,CONCATENATE(\"週 \",WEEKNUM(CalendarDay),\"/日 \",CalendarDay-DATE(YEAR(CalendarDay),1,0)),CONCATENATE(\"日 \",CalendarDay-DATE(YEAR(CalendarDay),1,0)))","v":"週 44/日 301"},{"$f":"IF(WEEKDAY(CalendarDay)=WeekStartValue,CONCATENATE(\"週 \",WEEKNUM(CalendarDay),\"/日 \",CalendarDay-DATE(YEAR(CalendarDay),1,0)),CONCATENATE(\"日 \",CalendarDay-DATE(YEAR(CalendarDay),1,0)))","v":"日 302"},{"$f":"IF(WEEKDAY(CalendarDay)=WeekStartValue,CONCATENATE(\"週 \",WEEKNUM(CalendarDay),\"/日 \",CalendarDay-DATE(YEAR(CalendarDay),1,0)),CONCATENATE(\"日 \",CalendarDay-DATE(YEAR(CalendarDay),1,0)))","v":"日 303"},{"$f":"IF(WEEKDAY(CalendarDay)=WeekStartValue,CONCATENATE(\"週 \",WEEKNUM(CalendarDay),\"/日 \",CalendarDay-DATE(YEAR(CalendarDay),1,0)),CONCATENATE(\"日 \",CalendarDay-DATE(YEAR(CalendarDay),1,0)))","v":"日 304"},{"$f":"IF(WEEKDAY(CalendarDay)=WeekStartValue,CONCATENATE(\"週 \",WEEKNUM(CalendarDay),\"/日 \",CalendarDay-DATE(YEAR(CalendarDay),1,0)),CONCATENATE(\"日 \",CalendarDay-DATE(YEAR(CalendarDay),1,0)))","v":"日 305"},{"$f":"IF(WEEKDAY(CalendarDay)=WeekStartValue,CONCATENATE(\"週 \",WEEKNUM(CalendarDay),\"/日 \",CalendarDay-DATE(YEAR(CalendarDay),1,0)),CONCATENATE(\"日 \",CalendarDay-DATE(YEAR(CalendarDay),1,0)))","v":"日 306"},{"$f":"IF(WEEKDAY(CalendarDay)=WeekStartValue,CONCATENATE(\"週 \",WEEKNUM(CalendarDay),\"/日 \",CalendarDay-DATE(YEAR(CalendarDay),1,0)),CONCATENATE(\"日 \",CalendarDay-DATE(YEAR(CalendarDay),1,0)))","v":"日 307"}]
[{"$nulls":4},"メモ"]
[]
[null,null,{"$f":"DaysAndWeeks+DATE(CalendarYear,10,1)-WEEKDAY(DATE(CalendarYear,10,1),(WeekStart=\"月\")+1)+36","v":"2018-11-04"},"2018-11-05"]
[null,null,{"$f":"IF(WEEKDAY(CalendarDay)=WeekStartValue,CONCATENATE(\"週 \",WEEKNUM(CalendarDay),\"/日 \",CalendarDay-DATE(YEAR(CalendarDay),1,0)),CONCATENATE(\"日 \",CalendarDay-DATE(YEAR(CalendarDay),1,0)))","v":"週 45/日 308"},{"$f":"IF(WEEKDAY(CalendarDay)=WeekStartValue,CONCATENATE(\"週 \",WEEKNUM(CalendarDay),\"/日 \",CalendarDay-DATE(YEAR(CalendarDay),1,0)),CONCATENATE(\"日 \",CalendarDay-DATE(YEAR(CalendarDay),1,0)))","v":"日 309"}]

{"sheet":"11 月","index":10,"n_rows":20,"n_cols":9,"rows_kept":20,"merged":[[16,2,17,2],[17,4,19,8]]}
[null,"11 月",{"$f":"UPPER(TEXT(WeekStart,\"ddd\"))","v":"日"},{"$f":"UPPER(TEXT(D3,\"aaa\"))","v":"月"},"火","水","木","金","土"]
[null,{"$f":"CalendarYear","v":2018}]
[null,null,{"$f":"DaysAndWeeks+DATE(CalendarYear,11,1)-WEEKDAY(DATE(CalendarYear,11,1),(WeekStart=\"月\")+1)+1","v":"2018-10-28"},"2018-10-29","2018-10-30","2018-10-31","2018-11-01","2018-11-02","2018-11-03"]
[null,null,{"$f":"IF(DAY(CalendarDay)=1,CONCATENATE(\"週 \",WEEKNUM(CalendarDay),\"/日 \",CalendarDay-DATE(YEAR(CalendarDay),1,0)),CONCATENATE(\"日 \",CalendarDay-DATE(YEAR(CalendarDay),1,0)))","v":"日 301"},{"$f":"IF(DAY(CalendarDay)=1,CONCATENATE(\"週 \",WEEKNUM(CalendarDay),\"/日 \",CalendarDay-DATE(YEAR(CalendarDay),1,0)),CONCATENATE(\"日 \",CalendarDay-DATE(YEAR(CalendarDay),1,0)))","v":"日 302"},{"$f":"IF(DAY(CalendarDay)=1,CONCATENATE(\"週 \",WEEKNUM(CalendarDay),\"/日 \",CalendarDay-DATE(YEAR(CalendarDay),1,0)),CONCATENATE(\"日 \",CalendarDay-DATE(YEAR(CalendarDay),1,0)))","v":"日 303"},{"$f":"IF(DAY(CalendarDay)=1,CONCATENATE(\"週 \",WEEKNUM(CalendarDay),\"/日 \",CalendarDay-DATE(YEAR(CalendarDay),1,0)),CONCATENATE(\"日 \",CalendarDay-DATE(YEAR(CalendarDay),1,0)))","v":"日 304"},{"$f":"IF(DAY(CalendarDay)=1,CONCATENATE(\"週 \",WEEKNUM(CalendarDay),\"/日 \",CalendarDay-DATE(YEAR(CalendarDay),1,0)),CONCATENATE(\"日 \",CalendarDay-DATE(YEAR(CalendarDay),1,0)))","v":"週 44/日 305"},{"$f":"IF(DAY(CalendarDay)=1,CONCATENATE(\"週 \",WEEKNUM(CalendarDay),\"/日 \",CalendarDay-DATE(YEAR(CalendarDay),1,0)),CONCATENATE(\"日 \",CalendarDay-DATE(YEAR(CalendarDay),1,0)))","v":"日 306"},{"$f":"IF(DAY(CalendarDay)=1,CONCATENATE(\"週 \",WEEKNUM(CalendarDay),\"/日 \",CalendarDay-DATE(YEAR(CalendarDay),1,0)),CONCATENATE(\"日 \",CalendarDay-DATE(YEAR(CalendarDay),1,0)))","v":"日 307"}]
[]
[null,null,{"$f":"DaysAndWeeks+DATE(CalendarYear,11,1)-WEEKDAY(DATE(CalendarYear,11,1),(WeekStart=\"月\")+1)+8","v":"2018-11-04"},"2018-11-05","2018-11-06","2018-11-07","2018-11-08","2018-11-09","2018-11-10"]
[null,null,{"$f":"IF(WEEKDAY(CalendarDay)=WeekStartValue,CONCATENATE(\"週 \",WEEKNUM(CalendarDay),\"/日 \",CalendarDay-DATE(YEAR(CalendarDay),1,0)),CONCATENATE(\"日 \",CalendarDay-DATE(YEAR(CalendarDay),1,0)))","v":"週 45/日 308"},{"$f":"IF(WEEKDAY(CalendarDay)=WeekStartValue,CONCATENATE(\"週 \",WEEKNUM(CalendarDay),\"/日 \",CalendarDay-DATE(YEAR(CalendarDay),1,0)),CONCATENATE(\"日 \",CalendarDay-DATE(YEAR(CalendarDay),1,0)))","v":"日 309"},{"$f":"IF(WEEKDAY(CalendarDay)=WeekStartValue,CONCATENATE(\"週 \",WEEKNUM(CalendarDay),\"/日 \",CalendarDay-DATE(YEAR(CalendarDay),1,0)),CONCATENATE(\"日 \",CalendarDay-DATE(YEAR(CalendarDay),1,0)))","v":"日 310"},{"$f":"IF(WEEKDAY(CalendarDay)=WeekStartValue,CONCATENATE(\"週 \",WEEKNUM(CalendarDay),\"/日 \",CalendarDay-DATE(YEAR(CalendarDay),1,0)),CONCATENATE(\"日 \",CalendarDay-DATE(YEAR(CalendarDay),1,0)))","v":"日 311"},{"$f":"IF(WEEKDAY(CalendarDay)=WeekStartValue,CONCATENATE(\"週 \",WEEKNUM(CalendarDay),\"/日 \",CalendarDay-DATE(YEAR(CalendarDay),1,0)),CONCATENATE(\"日 \",CalendarDay-DATE(YEAR(CalendarDay),1,0)))","v":"日 312"},{"$f":"IF(WEEKDAY(CalendarDay)=WeekStartValue,CONCATENATE(\"週 \",WEEKNUM(CalendarDay),\"/日 \",CalendarDay-DATE(YEAR(CalendarDay),1,0)),CONCATENATE(\"日 \",CalendarDay-DATE(YEAR(CalendarDay),1,0)))","v":"日 313"},{"$f":"IF(WEEKDAY(CalendarDay)=WeekStartValue,CONCATENATE(\"週 \",WEEKNUM(CalendarDay),\"/日 \",CalendarDay-DATE(YEAR(CalendarDay),1,0)),CONCATENATE(\"日 \",CalendarDay-DATE(YEAR(CalendarDay),1,0)))","v":"日 314"}]
[]
[null,null,{"$f":"DaysAndWeeks+DATE(CalendarYear,11,1)-WEEKDAY(DATE(CalendarYear,11,1),(WeekStart=\"月\")+1)+15","v":"2018-11-11"},"2018-11-12","2018-11-13","2018-11-14","2018-11-15","2018-11-16","2018-11-17"]
[null,null,{"$f":"IF(WEEKDAY(CalendarDay)=WeekStartValue,CONCATENATE(\"週 \",WEEKNUM(CalendarDay),\"/日 \",CalendarDay-DATE(YEAR(CalendarDay),1,0)),CONCATENATE(\"日 \",CalendarDay-DATE(YEAR(CalendarDay),1,0)))","v":"週 46/日 315"},{"$f":"IF(WEEKDAY(CalendarDay)=WeekStartValue,CONCATENATE(\"週 \",WEEKNUM(CalendarDay),\"/日 \",CalendarDay-DATE(YEAR(CalendarDay),1,0)),CONCATENATE(\"日 \",CalendarDay-DATE(YEAR(CalendarDay),1,0)))","v":"日 316"},{"$f":"IF(WEEKDAY(CalendarDay)=WeekStartValue,CONCATENATE(\"週 \",WEEKNUM(CalendarDay),\"/日 \",CalendarDay-DATE(YEAR(CalendarDay),1,0)),CONCATENATE(\"日 \",CalendarDay-DATE(YEAR(CalendarDay),1,0)))","v":"日 317"},{"$f":"IF(WEEKDAY(CalendarDay)=WeekStartValue,CONCATENATE(\"週 \",WEEKNUM(CalendarDay),\"/日 \",CalendarDay-DATE(YEAR(CalendarDay),1,0)),CONCATENATE(\"日 \",CalendarDay-DATE(YEAR(CalendarDay),1,0)))","v":"日 318"},{"$f":"IF(WEEKDAY(CalendarDay)=WeekStartValue,CONCATENATE(\"週 \",WEEKNUM(CalendarDay),\"/日 \",CalendarDay-DATE(YEAR(CalendarDay),1,0)),CONCATENATE(\"日 \",CalendarDay-DATE(YEAR(CalendarDay),1,0)))","v":"日 319"},{"$f":"IF(WEEKDAY(CalendarDay)=WeekStartValue,CONCATENATE(\"週 \",WEEKNUM(CalendarDay),\"/日 \",CalendarDay-DATE(YEAR(CalendarDay),1,0)),CONCATENATE(\"日 \",CalendarDay-DATE(YEAR(CalendarDay),1,0)))","v":"日 320"},{"$f":"IF(WEEKDAY(CalendarDay)=WeekStartValue,CONCATENATE(\"週 \",WEEKNUM(CalendarDay),\"/日 \",CalendarDay-DATE(YEAR(CalendarDay),1,0)),CONCATENATE(\"日 \",CalendarDay-DATE(YEAR(CalendarDay),1,0)))","v":"日 321"}]
[]
[null,null,{"$f":"DaysAndWeeks+DATE(CalendarYear,11,1)-WEEKDAY(DATE(CalendarYear,11,1),(WeekStart=\"月\")+1)+22","v":"2018-11-18"},"2018-11-19","2018-11-20","2018-11-21","2018-11-22","2018-11-23","2018-11-24"]
[null,null,{"$f":"IF(WEEKDAY(CalendarDay)=WeekStartValue,CONCATENATE(\"週 \",WEEKNUM(CalendarDay),\"/日 \",CalendarDay-DATE(YEAR(CalendarDay),1,0)),CONCATENATE(\"日 \",CalendarDay-DATE(YEAR(CalendarDay),1,0)))","v":"週 47/日 322"},{"$f":"IF(WEEKDAY(CalendarDay)=WeekStartValue,CONCATENATE(\"週 \",WEEKNUM(CalendarDay),\"/日 \",CalendarDay-DATE(YEAR(CalendarDay),1,0)),CONCATENATE(\"日 \",CalendarDay-DATE(YEAR(CalendarDay),1,0)))","v":"日 323"},{"$f":"IF(WEEKDAY(CalendarDay)=WeekStartValue,CONCATENATE(\"週 \",WEEKNUM(CalendarDay),\"/日 \",CalendarDay-DATE(YEAR(CalendarDay),1,0)),CONCATENATE(\"日 \",CalendarDay-DATE(YEAR(CalendarDay),1,0)))","v":"日 324"},{"$f":"IF(WEEKDAY(CalendarDay)=WeekStartValue,CONCATENATE(\"週 \",WEEKNUM(CalendarDay),\"/日 \",CalendarDay-DATE(YEAR(CalendarDay),1,0)),CONCATENATE(\"日 \",CalendarDay-DATE(YEAR(CalendarDay),1,0)))","v":"日 325"},{"$f":"IF(WEEKDAY(CalendarDay)=WeekStartValue,CONCATENATE(\"週 \",WEEKNUM(CalendarDay),\"/日 \",CalendarDay-DATE(YEAR(CalendarDay),1,0)),CONCATENATE(\"日 \",CalendarDay-DATE(YEAR(CalendarDay),1,0)))","v":"日 326"},{"$f":"IF(WEEKDAY(CalendarDay)=WeekStartValue,CONCATENATE(\"週 \",WEEKNUM(CalendarDay),\"/日 \",CalendarDay-DATE(YEAR(CalendarDay),1,0)),CONCATENATE(\"日 \",CalendarDay-DATE(YEAR(CalendarDay),1,0)))","v":"日 327"},{"$f":"IF(WEEKDAY(CalendarDay)=WeekStartValue,CONCATENATE(\"週 \",WEEKNUM(CalendarDay),\"/日 \",CalendarDay-DATE(YEAR(CalendarDay),1,0)),CONCATENATE(\"日 \",CalendarDay-DATE(YEAR(CalendarDay),1,0)))","v":"日 328"}]
[]
[null,null,{"$f":"DaysAndWeeks+DATE(CalendarYear,11,1)-WEEKDAY(DATE(CalendarYear,11,1),(WeekStart=\"月\")+1)+29","v":"2018-11-25"},"2018-11-26","2018-11-27","2018-11-28","2018-11-29","2018-11-30","2018-12-01"]
[null,null,{"$f":"IF(WEEKDAY(CalendarDay)=WeekStartValue,CONCATENATE(\"週 \",WEEKNUM(CalendarDay),\"/日 \",CalendarDay-DATE(YEAR(CalendarDay),1,0)),CONCATENATE(\"日 \",CalendarDay-DATE(YEAR(CalendarDay),1,0)))","v":"週 48/日 329"},{"$f":"IF(WEEKDAY(CalendarDay)=WeekStartValue,CONCATENATE(\"週 \",WEEKNUM(CalendarDay),\"/日 \",CalendarDay-DATE(YEAR(CalendarDay),1,0)),CONCATENATE(\"日 \",CalendarDay-DATE(YEAR(CalendarDay),1,0)))","v":"日 330"},{"$f":"IF(WEEKDAY(CalendarDay)=WeekStartValue,CONCATENATE(\"週 \",WEEKNUM(CalendarDay),\"/日 \",CalendarDay-DATE(YEAR(CalendarDay),1,0)),CONCATENATE(\"日 \",CalendarDay-DATE(YEAR(CalendarDay),1,0)))","v":"日 331"},{"$f":"IF(WEEKDAY(CalendarDay)=WeekStartValue,CONCATENATE(\"週 \",WEEKNUM(CalendarDay),\"/日 \",CalendarDay-DATE(YEAR(CalendarDay),1,0)),CONCATENATE(\"日 \",CalendarDay-DATE(YEAR(CalendarDay),1,0)))","v":"日 332"},{"$f":"IF(WEEKDAY(CalendarDay)=WeekStartValue,CONCATENATE(\"週 \",WEEKNUM(CalendarDay),\"/日 \",CalendarDay-DATE(YEAR(CalendarDay),1,0)),CONCATENATE(\"日 \",CalendarDay-DATE(YEAR(CalendarDay),1,0)))","v":"日 333"},{"$f":"IF(WEEKDAY(CalendarDay)=WeekStartValue,CONCATENATE(\"週 \",WEEKNUM(CalendarDay),\"/日 \",CalendarDay-DATE(YEAR(CalendarDay),1,0)),CONCATENATE(\"日 \",CalendarDay-DATE(YEAR(CalendarDay),1,0)))","v":"日 334"},{"$f":"IF(WEEKDAY(CalendarDay)=WeekStartValue,CONCATENATE(\"週 \",WEEKNUM(CalendarDay),\"/日 \",CalendarDay-DATE(YEAR(CalendarDay),1,0)),CONCATENATE(\"日 \",CalendarDay-DATE(YEAR(CalendarDay),1,0)))","v":"日 335"}]
[{"$nulls":4},"メモ"]
[]
[null,null,{"$f":"DaysAndWeeks+DATE(CalendarYear,11,1)-WEEKDAY(DATE(CalendarYear,11,1),(WeekStart=\"月\")+1)+36","v":"2018-12-02"},"2018-12-03"]
[null,null,{"$f":"IF(WEEKDAY(CalendarDay)=WeekStartValue,CONCATENATE(\"週 \",WEEKNUM(CalendarDay),\"/日 \",CalendarDay-DATE(YEAR(CalendarDay),1,0)),CONCATENATE(\"日 \",CalendarDay-DATE(YEAR(CalendarDay),1,0)))","v":"週 49/日 336"},{"$f":"IF(WEEKDAY(CalendarDay)=WeekStartValue,CONCATENATE(\"週 \",WEEKNUM(CalendarDay),\"/日 \",CalendarDay-DATE(YEAR(CalendarDay),1,0)),CONCATENATE(\"日 \",CalendarDay-DATE(YEAR(CalendarDay),1,0)))","v":"日 337"}]

{"sheet":"12 月","index":11,"n_rows":20,"n_cols":9,"rows_kept":20,"merged":[[16,2,17,2],[17,4,19,8]]}
[null,"12 月",{"$f":"UPPER(TEXT(WeekStart,\"ddd\"))","v":"日"},{"$f":"UPPER(TEXT(D3,\"aaa\"))","v":"月"},"火","水","木","金","土"]
[null,{"$f":"CalendarYear","v":2018}]
[null,null,{"$f":"DaysAndWeeks+DATE(CalendarYear,12,1)-WEEKDAY(DATE(CalendarYear,12,1),(WeekStart=\"月\")+1)+1","v":"2018-11-25"},"2018-11-26","2018-11-27","2018-11-28","2018-11-29","2018-11-30","2018-12-01"]
[null,null,{"$f":"IF(DAY(CalendarDay)=1,CONCATENATE(\"週 \",WEEKNUM(CalendarDay),\"/日 \",CalendarDay-DATE(YEAR(CalendarDay),1,0)),CONCATENATE(\"日 \",CalendarDay-DATE(YEAR(CalendarDay),1,0)))","v":"日 329"},{"$f":"IF(DAY(CalendarDay)=1,CONCATENATE(\"週 \",WEEKNUM(CalendarDay),\"/日 \",CalendarDay-DATE(YEAR(CalendarDay),1,0)),CONCATENATE(\"日 \",CalendarDay-DATE(YEAR(CalendarDay),1,0)))","v":"日 330"},{"$f":"IF(DAY(CalendarDay)=1,CONCATENATE(\"週 \",WEEKNUM(CalendarDay),\"/日 \",CalendarDay-DATE(YEAR(CalendarDay),1,0)),CONCATENATE(\"日 \",CalendarDay-DATE(YEAR(CalendarDay),1,0)))","v":"日 331"},{"$f":"IF(DAY(CalendarDay)=1,CONCATENATE(\"週 \",WEEKNUM(CalendarDay),\"/日 \",CalendarDay-DATE(YEAR(CalendarDay),1,0)),CONCATENATE(\"日 \",CalendarDay-DATE(YEAR(CalendarDay),1,0)))","v":"日 332"},{"$f":"IF(DAY(CalendarDay)=1,CONCATENATE(\"週 \",WEEKNUM(CalendarDay),\"/日 \",CalendarDay-DATE(YEAR(CalendarDay),1,0)),CONCATENATE(\"日 \",CalendarDay-DATE(YEAR(CalendarDay),1,0)))","v":"日 333"},{"$f":"IF(DAY(CalendarDay)=1,CONCATENATE(\"週 \",WEEKNUM(CalendarDay),\"/日 \",CalendarDay-DATE(YEAR(CalendarDay),1,0)),CONCATENATE(\"日 \",CalendarDay-DATE(YEAR(CalendarDay),1,0)))","v":"日 334"},{"$f":"IF(DAY(CalendarDay)=1,CONCATENATE(\"週 \",WEEKNUM(CalendarDay),\"/日 \",CalendarDay-DATE(YEAR(CalendarDay),1,0)),CONCATENATE(\"日 \",CalendarDay-DATE(YEAR(CalendarDay),1,0)))","v":"週 48/日 335"}]
[]
[null,null,{"$f":"DaysAndWeeks+DATE(CalendarYear,12,1)-WEEKDAY(DATE(CalendarYear,12,1),(WeekStart=\"月\")+1)+8","v":"2018-12-02"},"2018-12-03","2018-12-04","2018-12-05","2018-12-06","2018-12-07","2018-12-08"]
[null,null,{"$f":"IF(WEEKDAY(CalendarDay)=WeekStartValue,CONCATENATE(\"週 \",WEEKNUM(CalendarDay),\"/日 \",CalendarDay-DATE(YEAR(CalendarDay),1,0)),CONCATENATE(\"日 \",CalendarDay-DATE(YEAR(CalendarDay),1,0)))","v":"週 49/日 336"},{"$f":"IF(WEEKDAY(CalendarDay)=WeekStartValue,CONCATENATE(\"週 \",WEEKNUM(CalendarDay),\"/日 \",CalendarDay-DATE(YEAR(CalendarDay),1,0)),CONCATENATE(\"日 \",CalendarDay-DATE(YEAR(CalendarDay),1,0)))","v":"日 337"},{"$f":"IF(WEEKDAY(CalendarDay)=WeekStartValue,CONCATENATE(\"週 \",WEEKNUM(CalendarDay),\"/日 \",CalendarDay-DATE(YEAR(CalendarDay),1,0)),CONCATENATE(\"日 \",CalendarDay-DATE(YEAR(CalendarDay),1,0)))","v":"日 338"},{"$f":"IF(WEEKDAY(CalendarDay)=WeekStartValue,CONCATENATE(\"週 \",WEEKNUM(CalendarDay),\"/日 \",CalendarDay-DATE(YEAR(CalendarDay),1,0)),CONCATENATE(\"日 \",CalendarDay-DATE(YEAR(CalendarDay),1,0)))","v":"日 339"},{"$f":"IF(WEEKDAY(CalendarDay)=WeekStartValue,CONCATENATE(\"週 \",WEEKNUM(CalendarDay),\"/日 \",CalendarDay-DATE(YEAR(CalendarDay),1,0)),CONCATENATE(\"日 \",CalendarDay-DATE(YEAR(CalendarDay),1,0)))","v":"日 340"},{"$f":"IF(WEEKDAY(CalendarDay)=WeekStartValue,CONCATENATE(\"週 \",WEEKNUM(CalendarDay),\"/日 \",CalendarDay-DATE(YEAR(CalendarDay),1,0)),CONCATENATE(\"日 \",CalendarDay-DATE(YEAR(CalendarDay),1,0)))","v":"日 341"},{"$f":"IF(WEEKDAY(CalendarDay)=WeekStartValue,CONCATENATE(\"週 \",WEEKNUM(CalendarDay),\"/日 \",CalendarDay-DATE(YEAR(CalendarDay),1,0)),CONCATENATE(\"日 \",CalendarDay-DATE(YEAR(CalendarDay),1,0)))","v":"日 342"}]
[]
[null,null,{"$f":"DaysAndWeeks+DATE(CalendarYear,12,1)-WEEKDAY(DATE(CalendarYear,12,1),(WeekStart=\"月\")+1)+15","v":"2018-12-09"},"2018-12-10","2018-12-11","2018-12-12","2018-12-13","2018-12-14","2018-12-15"]
[null,null,{"$f":"IF(WEEKDAY(CalendarDay)=WeekStartValue,CONCATENATE(\"週 \",WEEKNUM(CalendarDay),\"/日 \",CalendarDay-DATE(YEAR(CalendarDay),1,0)),CONCATENATE(\"日 \",CalendarDay-DATE(YEAR(CalendarDay),1,0)))","v":"週 50/日 343"},{"$f":"IF(WEEKDAY(CalendarDay)=WeekStartValue,CONCATENATE(\"週 \",WEEKNUM(CalendarDay),\"/日 \",CalendarDay-DATE(YEAR(CalendarDay),1,0)),CONCATENATE(\"日 \",CalendarDay-DATE(YEAR(CalendarDay),1,0)))","v":"日 344"},{"$f":"IF(WEEKDAY(CalendarDay)=WeekStartValue,CONCATENATE(\"週 \",WEEKNUM(CalendarDay),\"/日 \",CalendarDay-DATE(YEAR(CalendarDay),1,0)),CONCATENATE(\"日 \",CalendarDay-DATE(YEAR(CalendarDay),1,0)))","v":"日 345"},{"$f":"IF(WEEKDAY(CalendarDay)=WeekStartValue,CONCATENATE(\"週 \",WEEKNUM(CalendarDay),\"/日 \",CalendarDay-DATE(YEAR(CalendarDay),1,0)),CONCATENATE(\"日 \",CalendarDay-DATE(YEAR(CalendarDay),1,0)))","v":"日 346"},{"$f":"IF(WEEKDAY(CalendarDay)=WeekStartValue,CONCATENATE(\"週 \",WEEKNUM(CalendarDay),\"/日 \",CalendarDay-DATE(YEAR(CalendarDay),1,0)),CONCATENATE(\"日 \",CalendarDay-DATE(YEAR(CalendarDay),1,0)))","v":"日 347"},{"$f":"IF(WEEKDAY(CalendarDay)=WeekStartValue,CONCATENATE(\"週 \",WEEKNUM(CalendarDay),\"/日 \",CalendarDay-DATE(YEAR(CalendarDay),1,0)),CONCATENATE(\"日 \",CalendarDay-DATE(YEAR(CalendarDay),1,0)))","v":"日 348"},{"$f":"IF(WEEKDAY(CalendarDay)=WeekStartValue,CONCATENATE(\"週 \",WEEKNUM(CalendarDay),\"/日 \",CalendarDay-DATE(YEAR(CalendarDay),1,0)),CONCATENATE(\"日 \",CalendarDay-DATE(YEAR(CalendarDay),1,0)))","v":"日 349"}]
[]
[null,null,{"$f":"DaysAndWeeks+DATE(CalendarYear,12,1)-WEEKDAY(DATE(CalendarYear,12,1),(WeekStart=\"月\")+1)+22","v":"2018-12-16"},"2018-12-17","2018-12-18","2018-12-19","2018-12-20","2018-12-21","2018-12-22"]
[null,null,{"$f":"IF(WEEKDAY(CalendarDay)=WeekStartValue,CONCATENATE(\"週 \",WEEKNUM(CalendarDay),\"/日 \",CalendarDay-DATE(YEAR(CalendarDay),1,0)),CONCATENATE(\"日 \",CalendarDay-DATE(YEAR(CalendarDay),1,0)))","v":"週 51/日 350"},{"$f":"IF(WEEKDAY(CalendarDay)=WeekStartValue,CONCATENATE(\"週 \",WEEKNUM(CalendarDay),\"/日 \",CalendarDay-DATE(YEAR(CalendarDay),1,0)),CONCATENATE(\"日 \",CalendarDay-DATE(YEAR(CalendarDay),1,0)))","v":"日 351"},{"$f":"IF(WEEKDAY(CalendarDay)=WeekStartValue,CONCATENATE(\"週 \",WEEKNUM(CalendarDay),\"/日 \",CalendarDay-DATE(YEAR(CalendarDay),1,0)),CONCATENATE(\"日 \",CalendarDay-DATE(YEAR(CalendarDay),1,0)))","v":"日 352"},{"$f":"IF(WEEKDAY(CalendarDay)=WeekStartValue,CONCATENATE(\"週 \",WEEKNUM(CalendarDay),\"/日 \",CalendarDay-DATE(YEAR(CalendarDay),1,0)),CONCATENATE(\"日 \",CalendarDay-DATE(YEAR(CalendarDay),1,0)))","v":"日 353"},{"$f":"IF(WEEKDAY(CalendarDay)=WeekStartValue,CONCATENATE(\"週 \",WEEKNUM(CalendarDay),\"/日 \",CalendarDay-DATE(YEAR(CalendarDay),1,0)),CONCATENATE(\"日 \",CalendarDay-DATE(YEAR(CalendarDay),1,0)))","v":"日 354"},{"$f":"IF(WEEKDAY(CalendarDay)=WeekStartValue,CONCATENATE(\"週 \",WEEKNUM(CalendarDay),\"/日 \",CalendarDay-DATE(YEAR(CalendarDay),1,0)),CONCATENATE(\"日 \",CalendarDay-DATE(YEAR(CalendarDay),1,0)))","v":"日 355"},{"$f":"IF(WEEKDAY(CalendarDay)=WeekStartValue,CONCATENATE(\"週 \",WEEKNUM(CalendarDay),\"/日 \",CalendarDay-DATE(YEAR(CalendarDay),1,0)),CONCATENATE(\"日 \",CalendarDay-DATE(YEAR(CalendarDay),1,0)))","v":"日 356"}]
[]
[null,null,{"$f":"DaysAndWeeks+DATE(CalendarYear,12,1)-WEEKDAY(DATE(CalendarYear,12,1),(WeekStart=\"月\")+1)+29","v":"2018-12-23"},"2018-12-24","2018-12-25","2018-12-26","2018-12-27","2018-12-28","2018-12-29"]
[null,null,{"$f":"IF(WEEKDAY(CalendarDay)=WeekStartValue,CONCATENATE(\"週 \",WEEKNUM(CalendarDay),\"/日 \",CalendarDay-DATE(YEAR(CalendarDay),1,0)),CONCATENATE(\"日 \",CalendarDay-DATE(YEAR(CalendarDay),1,0)))","v":"週 52/日 357"},{"$f":"IF(WEEKDAY(CalendarDay)=WeekStartValue,CONCATENATE(\"週 \",WEEKNUM(CalendarDay),\"/日 \",CalendarDay-DATE(YEAR(CalendarDay),1,0)),CONCATENATE(\"日 \",CalendarDay-DATE(YEAR(CalendarDay),1,0)))","v":"日 358"},{"$f":"IF(WEEKDAY(CalendarDay)=WeekStartValue,CONCATENATE(\"週 \",WEEKNUM(CalendarDay),\"/日 \",CalendarDay-DATE(YEAR(CalendarDay),1,0)),CONCATENATE(\"日 \",CalendarDay-DATE(YEAR(CalendarDay),1,0)))","v":"日 359"},{"$f":"IF(WEEKDAY(CalendarDay)=WeekStartValue,CONCATENATE(\"週 \",WEEKNUM(CalendarDay),\"/日 \",CalendarDay-DATE(YEAR(CalendarDay),1,0)),CONCATENATE(\"日 \",CalendarDay-DATE(YEAR(CalendarDay),1,0)))","v":"日 360"},{"$f":"IF(WEEKDAY(CalendarDay)=WeekStartValue,CONCATENATE(\"週 \",WEEKNUM(CalendarDay),\"/日 \",CalendarDay-DATE(YEAR(CalendarDay),1,0)),CONCATENATE(\"日 \",CalendarDay-DATE(YEAR(CalendarDay),1,0)))","v":"日 361"},{"$f":"IF(WEEKDAY(CalendarDay)=WeekStartValue,CONCATENATE(\"週 \",WEEKNUM(CalendarDay),\"/日 \",CalendarDay-DATE(YEAR(CalendarDay),1,0)),CONCATENATE(\"日 \",CalendarDay-DATE(YEAR(CalendarDay),1,0)))","v":"日 362"},{"$f":"IF(WEEKDAY(CalendarDay)=WeekStartValue,CONCATENATE(\"週 \",WEEKNUM(CalendarDay),\"/日 \",CalendarDay-DATE(YEAR(CalendarDay),1,0)),CONCATENATE(\"日 \",CalendarDay-DATE(YEAR(CalendarDay),1,0)))","v":"日 363"}]
[{"$nulls":4},"メモ"]
[]
[null,null,{"$f":"DaysAndWeeks+DATE(CalendarYear,12,1)-WEEKDAY(DATE(CalendarYear,12,1),(WeekStart=\"月\")+1)+36","v":"2018-12-30"},"2018-12-31"]
[null,null,{"$f":"IF(WEEKDAY(CalendarDay)=WeekStartValue,CONCATENATE(\"週 \",WEEKNUM(CalendarDay),\"/日 \",CalendarDay-DATE(YEAR(CalendarDay),1,0)),CONCATENATE(\"日 \",CalendarDay-DATE(YEAR(CalendarDay),1,0)))","v":"週 53/日 364"},{"$f":"IF(WEEKDAY(CalendarDay)=WeekStartValue,CONCATENATE(\"週 \",WEEKNUM(CalendarDay),\"/日 \",CalendarDay-DATE(YEAR(CalendarDay),1,0)),CONCATENATE(\"日 \",CalendarDay-DATE(YEAR(CalendarDay),1,0)))","v":"日 365"}]